Workbook

Sheet Einleitung

Sheet Start
C2: Auftragsplanung | Software
R4: =Intern!A4 -> Version 1.20 | AA4: ="Firma: " &Start!Q20 -> Firma: Mustermann GmbH
P6: Auftragsplanung - Hauptmenü
W11: =EDATE($W$17,-6) -> 2016-02-01
W12: =EDATE($W$17,-5) -> 2016-03-01
H13: Diese Software ist personalisiert für | W13: =EDATE($W$17,-4) -> 2016-04-01
H14: Max Muster | W14: =EDATE($W$17,-3) -> 2016-05-01
G15: Mustermann GmbH | An der Burgermühle 10 | 83022 Rosenheim | W15: =EDATE($W$17,-2) -> 2016-06-01
D16: Erfassungsdatum: | E16: =IF(R27="","",R27) -> 2016-05-10 | J16: für Monat: | K16: =R28 -> 42461 | U16: =YEAR(R27) -> 2016 | W16: =EDATE($W$17,-1) -> 2016-07-01
D17: erfasst von: | E17: =IF(R29="","",R29) -> Max Muster | J17: Die Einrichtung erfolgt nach Vorgabe der Firma | U17: =DATE($U$16,1,1) -> 2016-01-01 | W17: =DATE(YEAR(TODAY()),MONTH(TODAY()),1) -> 2016-08-01
U18: =DATE($U$16,2,1) -> 2016-02-01 | W18: =EDATE($W$17,1) -> 2016-09-01
U19: =DATE($U$16,3,1) -> 2016-03-01 | W19: =EDATE($W$17,2) -> 2016-10-01
P20: Firma: | Q20: Mustermann GmbH | U20: =DATE($U$16,4,1) -> 2016-04-01 | W20: =EDATE($W$17,3) -> 2016-11-01
U21: =DATE($U$16,5,1) -> 2016-05-01 | W21: =EDATE($W$17,4) -> 2016-12-01
E22: Anleitung | L22: Auftragsplanung Angebote | U22: =DATE($U$16,6,1) -> 2016-06-01 | W22: =EDATE($W$17,5) -> 2017-01-01
U23: =DATE($U$16,7,1) -> 2016-07-01 | W23: =EDATE($W$17,6) -> 2017-02-01
P24: Berater: | Q24: Roland Bauer | U24: =DATE($U$16,8,1) -> 2016-08-01 | W24: =EDATE($W$17,7) -> 2017-03-01
U25: =DATE($U$16,9,1) -> 2016-09-01 | W25: =EDATE($W$17,8) -> 2017-04-01
U26: =DATE($U$16,10,1) -> 2016-10-01 | W26: =EDATE($W$17,9) -> 2017-05-01
E27: Einrichtung | L27: Auftragsplanung Aufträge | P27: Erfassungsdatum: | R27: 2016-05-10 | T27: =TEXT(R27,"MM") -> 05 | U27: =DATE($U$16,11,1) -> 2016-11-01 | W27: =EDATE($W$17,10) -> 2017-06-01
P28: für Monat: | R28: 2016-04-01 | T28: =TEXT(R28,"MM") -> 04 | U28: =DATE($U$16,12,1) -> 2016-12-01 | W28: =EDATE($W$17,11) -> 2017-07-01
P29: erfasst von: | R29: Max Muster | W29: =EDATE($W$17,12) -> 2017-08-01
AA44: © bauerundpartner
Z45: Erfassungsdatum:
Z46: für Monat: | AA46: =IF(Start!R28="","",Start!R28) -> 42461
Z47: erfasst von:
T62: Roland Bauer
T63: Hartmut Weigelt
T64: Angelika Holzner
T65: bp

Sheet Chefinfo (hidden)
C2: Auftragsplanung | Chefinfo | H2: 2016-02-04 | BG2: =TODAY() -> 2016-08-09
BF3: 1 | BG3: =YEAR($BG$2)-1 -> 2015
C4: =Start!AA4&" "&"Erfassungsdatum: "&TEXT(Start!E16,"TT.MM.JJJJ")&" "&"für Monat: "&TEXT(Start!AA46,"MM/JJJJ")&" "&"erfasst von: "&TEXT(Start!E17,"") -> Firma: Mustermann GmbH Erfassungsdatum: 10.05.2016 für Monat: 04/2016 erfasst von: Max Muster | BF4: 1 | BG4: =YEAR($BG$2)-1 -> 2015 | BI4: 2
BF5: 2 | BG5: =YEAR($BG$2) -> 2016 | BI5: =VLOOKUP(BI4,BF3:BG7,2) -> 2016
BF6: 3 | BG6: =YEAR($BG$2)+1 -> 2017
D7: =BI5 -> 2016 | BF7: 4 | BG7: =YEAR($BG$2)+2 -> 2018
D9: =DATE($D$7,1,1) -> 2016-01-01 | E9: =DATE($D$7,2,1) -> 2016-02-01 | F9: =DATE($D$7,3,1) -> 2016-03-01 | G9: =DATE($D$7,4,1) -> 2016-04-01 | H9: =DATE($D$7,5,1) -> 2016-05-01 | I9: =DATE($D$7,6,1) -> 2016-06-01 | J9: =DATE($D$7,7,1) -> 2016-07-01 | K9: =DATE($D$7,8,1) -> 2016-08-01 | L9: =DATE($D$7,9,1) -> 2016-09-01 | M9: =DATE($D$7,10,1) -> 2016-10-01 | N9: =DATE($D$7,11,1) -> 2016-11-01 | O9: =DATE($D$7,12,1) -> 2016-12-01
C10: Chefinfo Angebotsübersicht | AQ10: Jahr | AY10: Grenzwerte | BB10: Handlungsanweisungen
D11: =MONTH(D9) -> 1 | E11: =MONTH(E9) -> 2 | F11: 3 | G11: 4 | H11: 5 | I11: 6 | J11: 7 | K11: 8 | L11: 9 | M11: 10 | N11: 11 | O11: 12
D12: Jan | E12: Feb | F12: Mrz | G12: Apr | H12: Mai | I12: Jun | J12: Jul | K12: Aug | L12: Sept | M12: Okt | N12: Nov | O12: Dez | Q12: jan | AQ12: kum. | AY12: >= grün | AZ12: >= gelb | BA12: rot | BB12: 1 | BC12: 2 | BD12: 3
C13: Auftragswert in T€ | D13: =IF(Q14=0,"",Q13) ->  | E13: =IF(R14=0,"",R13) -> 480 | Q13: =IF(D14>0,SUMPRODUCT((Angebote!$B$14:$B$24>=DATE($D$7,D$11,1))*(Angebote!$B$14:$B$24<=DATE($D$7,D$11,31))*(OR(Angebote!$P$14:$P$24=1,Angebote!$P$14:$P$24=2))*(Angebote!$B$14:$B$24<>"#NV"),Angebote!$Q$14:$Q$24),"") -> 0 | R13: =IF(E14>0,SUMPRODUCT((Angebote!$B$14:$B$24>=DATE($D$7,E$11,1))*(Angebote!$B$14:$B$24<=DATE($D$7,E$11,31))*(OR(Angebote!$P$14:$P$24=1,Angebote!$P$14:$P$24=2))*(Angebote!$B$14:$B$24<>"#NV"),Angebote!$Q$14:$Q$24),"") -> 480 | S13: =IF(F14>0,SUMPRODUCT((Angebote!$B$14:$B$24>=DATE($D$7,F$11,1))*(Angebote!$B$14:$B$24<=DATE($D$7,F$11,31))*(OR(Angebote!$P$14:$P$24=1,Angebote!$P$14:$P$24=2))*(Angebote!$B$14:$B$24<>"#NV"),Angebote!$Q$14:$Q$24),"") -> 0 | T13: =IF(G14>0,SUMPRODUCT((Angebote!$B$14:$B$24>=DATE($D$7,G$11,1))*(Angebote!$B$14:$B$24<=DATE($D$7,G$11,31))*(OR(Angebote!$P$14:$P$24=1,Angebote!$P$14:$P$24=2))*(Angebote!$B$14:$B$24<>"#NV"),Angebote!$Q$14:$Q$24),"") -> 0 | U13: =IF(H14>0,SUMPRODUCT((Angebote!$B$14:$B$24>=DATE($D$7,H$11,1))*(Angebote!$B$14:$B$24<=DATE($D$7,H$11,31))*(OR(Angebote!$P$14:$P$24=1,Angebote!$P$14:$P$24=2))*(Angebote!$B$14:$B$24<>"#NV"),Angebote!$Q$14:$Q$24),"") -> 0 | V13: =IF(I14>0,SUMPRODUCT((Angebote!$B$14:$B$24>=DATE($D$7,I$11,1))*(Angebote!$B$14:$B$24<=DATE($D$7,I$11,31))*(OR(Angebote!$P$14:$P$24=1,Angebote!$P$14:$P$24=2))*(Angebote!$B$14:$B$24<>"#NV"),Angebote!$Q$14:$Q$24),"") -> 0 | W13: =IF(J14>0,SUMPRODUCT((Angebote!$B$14:$B$24>=DATE($D$7,J$11,1))*(Angebote!$B$14:$B$24<=DATE($D$7,J$11,31))*(OR(Angebote!$P$14:$P$24=1,Angebote!$P$14:$P$24=2))*(Angebote!$B$14:$B$24<>"#NV"),Angebote!$Q$14:$Q$24),"") -> 0 | X13: =IF(K14>0,SUMPRODUCT((Angebote!$B$14:$B$24>=DATE($D$7,K$11,1))*(Angebote!$B$14:$B$24<=DATE($D$7,K$11,31))*(OR(Angebote!$P$14:$P$24=1,Angebote!$P$14:$P$24=2))*(Angebote!$B$14:$B$24<>"#NV"),Angebote!$Q$14:$Q$24),"") -> 0 | Y13: =IF(L14>0,SUMPRODUCT((Angebote!$B$14:$B$24>=DATE($D$7,L$11,1))*(Angebote!$B$14:$B$24<=DATE($D$7,L$11,31))*(OR(Angebote!$P$14:$P$24=1,Angebote!$P$14:$P$24=2))*(Angebote!$B$14:$B$24<>"#NV"),Angebote!$Q$14:$Q$24),"") -> 0 | Z13: =IF(M14>0,SUMPRODUCT((Angebote!$B$14:$B$24>=DATE($D$7,M$11,1))*(Angebote!$B$14:$B$24<=DATE($D$7,M$11,31))*(OR(Angebote!$P$14:$P$24=1,Angebote!$P$14:$P$24=2))*(Angebote!$B$14:$B$24<>"#NV"),Angebote!$Q$14:$Q$24),"") -> 0 | AA13: =IF(N14>0,SUMPRODUCT((Angebote!$B$14:$B$24>=DATE($D$7,N$11,1))*(Angebote!$B$14:$B$24<=DATE($D$7,N$11,31))*(OR(Angebote!$P$14:$P$24=1,Angebote!$P$14:$P$24=2))*(Angebote!$B$14:$B$24<>"#NV"),Angebote!$Q$14:$Q$24),"") -> 0 | AB13: =IF(O14>0,SUMPRODUCT((Angebote!$B$14:$B$24>=DATE($D$7,O$11,1))*(Angebote!$B$14:$B$24<=DATE($D$7,O$11,31))*(OR(Angebote!$P$14:$P$24=1,Angebote!$P$14:$P$24=2))*(Angebote!$B$14:$B$24<>"#NV"),Angebote!$Q$14:$Q$24),"") -> 0 | AQ13: =Q13+R13+S13+T13+U13+V13+W13+X13+Y13+Z13+AA13+AB13 -> 480 | AT13: =IF(AQ13>=AY13,1,IF(AQ13>=AZ13,2,3)) -> 3 | AU13: =AQ13 -> 480 | AW13: =HLOOKUP(AT13,$BB$12:$BD$22,2) -> Handlungsanweisung für rot | AY13: 2000 | AZ13: 500 | BB13: Handlungsanweisung für grün | BC13: Handlungsanweisung für gelb | BD13: Handlungsanweisung für rot
C14: Anzahl erhaltene Aufträge | D14: =IF(Q14=0,"",Q14) ->  | E14: =IF(R14=0,"",R14) -> 2 | Q14: =(SUMPRODUCT((Angebote!$B$14:$B$23>=DATE($D$7,D$11,1))*(Angebote!$B$14:$B$23<=DATE($D$7,D$11,31))*(Angebote!$P$14:$P$23=1)*(Angebote!$B$14:$B$23<>"#NV")))+(SUMPRODUCT((Angebote!$B$14:$B$23>=DATE($D$7,D$11,1))*(Angebote!$B$14:$B$23<=DATE($D$7,D$11,31))*(Angebote!$P$14:$P$23=2)*(Angebote!$B$14:$B$23<>"#NV"))) -> 0 | R14: =(SUMPRODUCT((Angebote!$B$14:$B$23>=DATE($D$7,E$11,1))*(Angebote!$B$14:$B$23<=DATE($D$7,E$11,31))*(Angebote!$P$14:$P$23=1)*(Angebote!$B$14:$B$23<>"#NV")))+(SUMPRODUCT((Angebote!$B$14:$B$23>=DATE($D$7,E$11,1))*(Angebote!$B$14:$B$23<=DATE($D$7,E$11,31))*(Angebote!$P$14:$P$23=2)*(Angebote!$B$14:$B$23<>"#NV"))) -> 2 | S14: =(SUMPRODUCT((Angebote!$B$14:$B$23>=DATE($D$7,F$11,1))*(Angebote!$B$14:$B$23<=DATE($D$7,F$11,31))*(Angebote!$P$14:$P$23=1)*(Angebote!$B$14:$B$23<>"#NV")))+(SUMPRODUCT((Angebote!$B$14:$B$23>=DATE($D$7,F$11,1))*(Angebote!$B$14:$B$23<=DATE($D$7,F$11,31))*(Angebote!$P$14:$P$23=2)*(Angebote!$B$14:$B$23<>"#NV"))) -> 0 | T14: =(SUMPRODUCT((Angebote!$B$14:$B$23>=DATE($D$7,G$11,1))*(Angebote!$B$14:$B$23<=DATE($D$7,G$11,31))*(Angebote!$P$14:$P$23=1)*(Angebote!$B$14:$B$23<>"#NV")))+(SUMPRODUCT((Angebote!$B$14:$B$23>=DATE($D$7,G$11,1))*(Angebote!$B$14:$B$23<=DATE($D$7,G$11,31))*(Angebote!$P$14:$P$23=2)*(Angebote!$B$14:$B$23<>"#NV"))) -> 0 | U14: =(SUMPRODUCT((Angebote!$B$14:$B$23>=DATE($D$7,H$11,1))*(Angebote!$B$14:$B$23<=DATE($D$7,H$11,31))*(Angebote!$P$14:$P$23=1)*(Angebote!$B$14:$B$23<>"#NV")))+(SUMPRODUCT((Angebote!$B$14:$B$23>=DATE($D$7,H$11,1))*(Angebote!$B$14:$B$23<=DATE($D$7,H$11,31))*(Angebote!$P$14:$P$23=2)*(Angebote!$B$14:$B$23<>"#NV"))) -> 0 | V14: =(SUMPRODUCT((Angebote!$B$14:$B$23>=DATE($D$7,I$11,1))*(Angebote!$B$14:$B$23<=DATE($D$7,I$11,31))*(Angebote!$P$14:$P$23=1)*(Angebote!$B$14:$B$23<>"#NV")))+(SUMPRODUCT((Angebote!$B$14:$B$23>=DATE($D$7,I$11,1))*(Angebote!$B$14:$B$23<=DATE($D$7,I$11,31))*(Angebote!$P$14:$P$23=2)*(Angebote!$B$14:$B$23<>"#NV"))) -> 0 | W14: =(SUMPRODUCT((Angebote!$B$14:$B$23>=DATE($D$7,J$11,1))*(Angebote!$B$14:$B$23<=DATE($D$7,J$11,31))*(Angebote!$P$14:$P$23=1)*(Angebote!$B$14:$B$23<>"#NV")))+(SUMPRODUCT((Angebote!$B$14:$B$23>=DATE($D$7,J$11,1))*(Angebote!$B$14:$B$23<=DATE($D$7,J$11,31))*(Angebote!$P$14:$P$23=2)*(Angebote!$B$14:$B$23<>"#NV"))) -> 0 | X14: =(SUMPRODUCT((Angebote!$B$14:$B$23>=DATE($D$7,K$11,1))*(Angebote!$B$14:$B$23<=DATE($D$7,K$11,31))*(Angebote!$P$14:$P$23=1)*(Angebote!$B$14:$B$23<>"#NV")))+(SUMPRODUCT((Angebote!$B$14:$B$23>=DATE($D$7,K$11,1))*(Angebote!$B$14:$B$23<=DATE($D$7,K$11,31))*(Angebote!$P$14:$P$23=2)*(Angebote!$B$14:$B$23<>"#NV"))) -> 0 | Y14: =(SUMPRODUCT((Angebote!$B$14:$B$23>=DATE($D$7,L$11,1))*(Angebote!$B$14:$B$23<=DATE($D$7,L$11,31))*(Angebote!$P$14:$P$23=1)*(Angebote!$B$14:$B$23<>"#NV")))+(SUMPRODUCT((Angebote!$B$14:$B$23>=DATE($D$7,L$11,1))*(Angebote!$B$14:$B$23<=DATE($D$7,L$11,31))*(Angebote!$P$14:$P$23=2)*(Angebote!$B$14:$B$23<>"#NV"))) -> 0 | Z14: =(SUMPRODUCT((Angebote!$B$14:$B$23>=DATE($D$7,M$11,1))*(Angebote!$B$14:$B$23<=DATE($D$7,M$11,31))*(Angebote!$P$14:$P$23=1)*(Angebote!$B$14:$B$23<>"#NV")))+(SUMPRODUCT((Angebote!$B$14:$B$23>=DATE($D$7,M$11,1))*(Angebote!$B$14:$B$23<=DATE($D$7,M$11,31))*(Angebote!$P$14:$P$23=2)*(Angebote!$B$14:$B$23<>"#NV"))) -> 0 | AA14: =(SUMPRODUCT((Angebote!$B$14:$B$23>=DATE($D$7,N$11,1))*(Angebote!$B$14:$B$23<=DATE($D$7,N$11,31))*(Angebote!$P$14:$P$23=1)*(Angebote!$B$14:$B$23<>"#NV")))+(SUMPRODUCT((Angebote!$B$14:$B$23>=DATE($D$7,N$11,1))*(Angebote!$B$14:$B$23<=DATE($D$7,N$11,31))*(Angebote!$P$14:$P$23=2)*(Angebote!$B$14:$B$23<>"#NV"))) -> 0 | AB14: =(SUMPRODUCT((Angebote!$B$14:$B$23>=DATE($D$7,O$11,1))*(Angebote!$B$14:$B$23<=DATE($D$7,O$11,31))*(Angebote!$P$14:$P$23=1)*(Angebote!$B$14:$B$23<>"#NV")))+(SUMPRODUCT((Angebote!$B$14:$B$23>=DATE($D$7,O$11,1))*(Angebote!$B$14:$B$23<=DATE($D$7,O$11,31))*(Angebote!$P$14:$P$23=2)*(Angebote!$B$14:$B$23<>"#NV"))) -> 0 | AQ14: =Q14+R14+S14+T14+U14+V14+W14+X14+Y14+Z14+AA14+AB14 -> 2 | AT14: =IF(AQ14>=AY14,1,IF(AQ14>=AZ14,2,3)) -> 3 | AU14: =AQ14 -> 2 | AW14: =HLOOKUP(AT14,$BB$12:$BD$22,3) -> Handlungsanweisung für rot | AY14: 10 | AZ14: 6 | BB14: Handlungsanweisung für grün | BC14: Handlungsanweisung für gelb | BD14: Handlungsanweisung für rot
C16: davon Auftagswert Folgeaufträge in T€ | D16: =IF(Q14=0,"",Q16) ->  | E16: =IF(R14=0,"",R16) -> 0 | Q16: =SUMPRODUCT((Angebote!$B$14:$B$24>=DATE($D$7,D$11,1))*(Angebote!$B$14:$B$24<=DATE($D$7,D$11,31))*(Angebote!$P$14:$P$24=2)*(Angebote!$B$14:$B$24<>"#NV"),Angebote!$Q$14:$Q$24) -> 0 | R16: =SUMPRODUCT((Angebote!$B$14:$B$24>=DATE($D$7,E$11,1))*(Angebote!$B$14:$B$24<=DATE($D$7,E$11,31))*(Angebote!$P$14:$P$24=2)*(Angebote!$B$14:$B$24<>"#NV"),Angebote!$Q$14:$Q$24) -> 0 | S16: =SUMPRODUCT((Angebote!$B$14:$B$24>=DATE($D$7,F$11,1))*(Angebote!$B$14:$B$24<=DATE($D$7,F$11,31))*(Angebote!$P$14:$P$24=2)*(Angebote!$B$14:$B$24<>"#NV"),Angebote!$Q$14:$Q$24) -> 0 | T16: =SUMPRODUCT((Angebote!$B$14:$B$24>=DATE($D$7,G$11,1))*(Angebote!$B$14:$B$24<=DATE($D$7,G$11,31))*(Angebote!$P$14:$P$24=2)*(Angebote!$B$14:$B$24<>"#NV"),Angebote!$Q$14:$Q$24) -> 0 | U16: =SUMPRODUCT((Angebote!$B$14:$B$24>=DATE($D$7,H$11,1))*(Angebote!$B$14:$B$24<=DATE($D$7,H$11,31))*(Angebote!$P$14:$P$24=2)*(Angebote!$B$14:$B$24<>"#NV"),Angebote!$Q$14:$Q$24) -> 0 | V16: =SUMPRODUCT((Angebote!$B$14:$B$24>=DATE($D$7,I$11,1))*(Angebote!$B$14:$B$24<=DATE($D$7,I$11,31))*(Angebote!$P$14:$P$24=2)*(Angebote!$B$14:$B$24<>"#NV"),Angebote!$Q$14:$Q$24) -> 0 | W16: =SUMPRODUCT((Angebote!$B$14:$B$24>=DATE($D$7,J$11,1))*(Angebote!$B$14:$B$24<=DATE($D$7,J$11,31))*(Angebote!$P$14:$P$24=2)*(Angebote!$B$14:$B$24<>"#NV"),Angebote!$Q$14:$Q$24) -> 0 | X16: =SUMPRODUCT((Angebote!$B$14:$B$24>=DATE($D$7,K$11,1))*(Angebote!$B$14:$B$24<=DATE($D$7,K$11,31))*(Angebote!$P$14:$P$24=2)*(Angebote!$B$14:$B$24<>"#NV"),Angebote!$Q$14:$Q$24) -> 0 | Y16: =SUMPRODUCT((Angebote!$B$14:$B$24>=DATE($D$7,L$11,1))*(Angebote!$B$14:$B$24<=DATE($D$7,L$11,31))*(Angebote!$P$14:$P$24=2)*(Angebote!$B$14:$B$24<>"#NV"),Angebote!$Q$14:$Q$24) -> 0 | Z16: =SUMPRODUCT((Angebote!$B$14:$B$24>=DATE($D$7,M$11,1))*(Angebote!$B$14:$B$24<=DATE($D$7,M$11,31))*(Angebote!$P$14:$P$24=2)*(Angebote!$B$14:$B$24<>"#NV"),Angebote!$Q$14:$Q$24) -> 0 | AA16: =SUMPRODUCT((Angebote!$B$14:$B$24>=DATE($D$7,N$11,1))*(Angebote!$B$14:$B$24<=DATE($D$7,N$11,31))*(Angebote!$P$14:$P$24=2)*(Angebote!$B$14:$B$24<>"#NV"),Angebote!$Q$14:$Q$24) -> 0 | AB16: =SUMPRODUCT((Angebote!$B$14:$B$24>=DATE($D$7,O$11,1))*(Angebote!$B$14:$B$24<=DATE($D$7,O$11,31))*(Angebote!$P$14:$P$24=2)*(Angebote!$B$14:$B$24<>"#NV"),Angebote!$Q$14:$Q$24) -> 0 | AQ16: 0 | AT16: =IF(AQ16>=AY16,1,IF(AQ16>=AZ16,2,3)) -> 3 | AU16: =AQ16 -> 0 | AW16: =HLOOKUP(AT16,$BB$12:$BD$22,5) -> Handlungsanweisung für rot | AY16: 100 | AZ16: 50 | BB16: Handlungsanweisung für grün | BC16: Handlungsanweisung für gelb | BD16: Handlungsanweisung für rot
C17: davon Anzahl erhaltene Folgeaufträge | D17: =IF(Q14=0,"",Q17) ->  | E17: =IF(R14=0,"",R17) -> 0 | Q17: =SUMPRODUCT((Angebote!$B$14:$B$23>=DATE($D$7,D$11,1))*(Angebote!$B$14:$B$23<=DATE($D$7,D$11,31))*(Angebote!$P$14:$P$23=2)*(Angebote!$B$14:$B$23<>"#NV")) -> 0 | R17: =SUMPRODUCT((Angebote!$B$14:$B$23>=DATE($D$7,E$11,1))*(Angebote!$B$14:$B$23<=DATE($D$7,E$11,31))*(Angebote!$P$14:$P$23=2)*(Angebote!$B$14:$B$23<>"#NV")) -> 0 | S17: =SUMPRODUCT((Angebote!$B$14:$B$23>=DATE($D$7,F$11,1))*(Angebote!$B$14:$B$23<=DATE($D$7,F$11,31))*(Angebote!$P$14:$P$23=2)*(Angebote!$B$14:$B$23<>"#NV")) -> 0 | T17: =SUMPRODUCT((Angebote!$B$14:$B$23>=DATE($D$7,G$11,1))*(Angebote!$B$14:$B$23<=DATE($D$7,G$11,31))*(Angebote!$P$14:$P$23=2)*(Angebote!$B$14:$B$23<>"#NV")) -> 0 | U17: =SUMPRODUCT((Angebote!$B$14:$B$23>=DATE($D$7,H$11,1))*(Angebote!$B$14:$B$23<=DATE($D$7,H$11,31))*(Angebote!$P$14:$P$23=2)*(Angebote!$B$14:$B$23<>"#NV")) -> 0 | V17: =SUMPRODUCT((Angebote!$B$14:$B$23>=DATE($D$7,I$11,1))*(Angebote!$B$14:$B$23<=DATE($D$7,I$11,31))*(Angebote!$P$14:$P$23=2)*(Angebote!$B$14:$B$23<>"#NV")) -> 0 | W17: =SUMPRODUCT((Angebote!$B$14:$B$23>=DATE($D$7,J$11,1))*(Angebote!$B$14:$B$23<=DATE($D$7,J$11,31))*(Angebote!$P$14:$P$23=2)*(Angebote!$B$14:$B$23<>"#NV")) -> 0 | X17: =SUMPRODUCT((Angebote!$B$14:$B$23>=DATE($D$7,K$11,1))*(Angebote!$B$14:$B$23<=DATE($D$7,K$11,31))*(Angebote!$P$14:$P$23=2)*(Angebote!$B$14:$B$23<>"#NV")) -> 0 | Y17: =SUMPRODUCT((Angebote!$B$14:$B$23>=DATE($D$7,L$11,1))*(Angebote!$B$14:$B$23<=DATE($D$7,L$11,31))*(Angebote!$P$14:$P$23=2)*(Angebote!$B$14:$B$23<>"#NV")) -> 0 | Z17: =SUMPRODUCT((Angebote!$B$14:$B$23>=DATE($D$7,M$11,1))*(Angebote!$B$14:$B$23<=DATE($D$7,M$11,31))*(Angebote!$P$14:$P$23=2)*(Angebote!$B$14:$B$23<>"#NV")) -> 0 | AA17: =SUMPRODUCT((Angebote!$B$14:$B$23>=DATE($D$7,N$11,1))*(Angebote!$B$14:$B$23<=DATE($D$7,N$11,31))*(Angebote!$P$14:$P$23=2)*(Angebote!$B$14:$B$23<>"#NV")) -> 0 | AB17: =SUMPRODUCT((Angebote!$B$14:$B$23>=DATE($D$7,O$11,1))*(Angebote!$B$14:$B$23<=DATE($D$7,O$11,31))*(Angebote!$P$14:$P$23=2)*(Angebote!$B$14:$B$23<>"#NV")) -> 0 | AQ17: 0 | AT17: =IF(AQ17>=AY17,1,IF(AQ17>=AZ17,2,3)) -> 3 | AU17: =AQ17 -> 0 | AW17: =HLOOKUP(AT17,$BB$12:$BD$22,6) -> Handlungsanweisung für rot | AY17: 2 | AZ17: 1 | BB17: Handlungsanweisung für grün | BC17: Handlungsanweisung für gelb | BD17: Handlungsanweisung für rot
C19: Angebotswert offene Angebote in T€ | D19: =IF(Q20=0,"",Q19) ->  | E19: =IF(R20=0,"",R19) -> 390 | F19: 390 | Q19: =SUMPRODUCT((Angebote!$B$14:$B$24>=DATE($D$7,D$11,1))*(Angebote!$B$14:$B$24<=DATE($D$7,D$11,31))*(Angebote!$P$14:$P$24="offen")*(Angebote!$B$14:$B$24<>"#NV"),Angebote!$K$14:$K$24) -> 0 | R19: =SUMPRODUCT((Angebote!$B$14:$B$24>=DATE($D$7,E$11,1))*(Angebote!$B$14:$B$24<=DATE($D$7,E$11,31))*(Angebote!$P$14:$P$24="offen")*(Angebote!$B$14:$B$24<>"#NV"),Angebote!$K$14:$K$24) -> 390 | S19: =SUMPRODUCT((Angebote!$B$14:$B$24>=DATE($D$7,F$11,1))*(Angebote!$B$14:$B$24<=DATE($D$7,F$11,31))*(Angebote!$P$14:$P$24="offen")*(Angebote!$B$14:$B$24<>"#NV"),Angebote!$K$14:$K$24) -> 390 | T19: =SUMPRODUCT((Angebote!$B$14:$B$24>=DATE($D$7,G$11,1))*(Angebote!$B$14:$B$24<=DATE($D$7,G$11,31))*(Angebote!$P$14:$P$24="offen")*(Angebote!$B$14:$B$24<>"#NV"),Angebote!$K$14:$K$24) -> 0 | U19: =SUMPRODUCT((Angebote!$B$14:$B$24>=DATE($D$7,H$11,1))*(Angebote!$B$14:$B$24<=DATE($D$7,H$11,31))*(Angebote!$P$14:$P$24="offen")*(Angebote!$B$14:$B$24<>"#NV"),Angebote!$K$14:$K$24) -> 0 | V19: =SUMPRODUCT((Angebote!$B$14:$B$24>=DATE($D$7,I$11,1))*(Angebote!$B$14:$B$24<=DATE($D$7,I$11,31))*(Angebote!$P$14:$P$24="offen")*(Angebote!$B$14:$B$24<>"#NV"),Angebote!$K$14:$K$24) -> 0 | W19: =SUMPRODUCT((Angebote!$B$14:$B$24>=DATE($D$7,J$11,1))*(Angebote!$B$14:$B$24<=DATE($D$7,J$11,31))*(Angebote!$P$14:$P$24="offen")*(Angebote!$B$14:$B$24<>"#NV"),Angebote!$K$14:$K$24) -> 0 | X19: =SUMPRODUCT((Angebote!$B$14:$B$24>=DATE($D$7,K$11,1))*(Angebote!$B$14:$B$24<=DATE($D$7,K$11,31))*(Angebote!$P$14:$P$24="offen")*(Angebote!$B$14:$B$24<>"#NV"),Angebote!$K$14:$K$24) -> 0 | Y19: =SUMPRODUCT((Angebote!$B$14:$B$24>=DATE($D$7,L$11,1))*(Angebote!$B$14:$B$24<=DATE($D$7,L$11,31))*(Angebote!$P$14:$P$24="offen")*(Angebote!$B$14:$B$24<>"#NV"),Angebote!$K$14:$K$24) -> 0 | Z19: =SUMPRODUCT((Angebote!$B$14:$B$24>=DATE($D$7,M$11,1))*(Angebote!$B$14:$B$24<=DATE($D$7,M$11,31))*(Angebote!$P$14:$P$24="offen")*(Angebote!$B$14:$B$24<>"#NV"),Angebote!$K$14:$K$24) -> 0 | AA19: =SUMPRODUCT((Angebote!$B$14:$B$24>=DATE($D$7,N$11,1))*(Angebote!$B$14:$B$24<=DATE($D$7,N$11,31))*(Angebote!$P$14:$P$24="offen")*(Angebote!$B$14:$B$24<>"#NV"),Angebote!$K$14:$K$24) -> 0 | AB19: =SUMPRODUCT((Angebote!$B$14:$B$24>=DATE($D$7,O$11,1))*(Angebote!$B$14:$B$24<=DATE($D$7,O$11,31))*(Angebote!$P$14:$P$24="offen")*(Angebote!$B$14:$B$24<>"#NV"),Angebote!$K$14:$K$24) -> 0 | AQ19: 780 | AT19: =IF(AQ19>=AY19,1,IF(AQ19>=AZ19,2,3)) -> 3 | AU19: =AQ19 -> 780 | AW19: =HLOOKUP(AT19,$BB$12:$BD$22,8) -> Handlungsanweisung für rot | AY19: 900 | AZ19: 800 | BB19: Handlungsanweisung für grün | BC19: Handlungsanweisung für gelb | BD19: Handlungsanweisung für rot
C20: Anzahl offene Angebote | D20: =IF(Q20=0,"",Q20) ->  | E20: =IF(R20=0,"",R20) -> 1 | F20: 1 | Q20: =SUMPRODUCT((Angebote!$B$14:$B$24>=DATE($D$7,D$11,1))*(Angebote!$B$14:$B$24<=DATE($D$7,D$11,31))*(Angebote!$P$14:$P$24="offen")*(Angebote!$B$14:$B$24<>"#NV"),Angebote!$S$14:$S$24) -> 0 | R20: =SUMPRODUCT((Angebote!$B$14:$B$24>=DATE($D$7,E$11,1))*(Angebote!$B$14:$B$24<=DATE($D$7,E$11,31))*(Angebote!$P$14:$P$24="offen")*(Angebote!$B$14:$B$24<>"#NV"),Angebote!$S$14:$S$24) -> 1 | S20: =SUMPRODUCT((Angebote!$B$14:$B$24>=DATE($D$7,F$11,1))*(Angebote!$B$14:$B$24<=DATE($D$7,F$11,31))*(Angebote!$P$14:$P$24="offen")*(Angebote!$B$14:$B$24<>"#NV"),Angebote!$S$14:$S$24) -> 1 | T20: =SUMPRODUCT((Angebote!$B$14:$B$24>=DATE($D$7,G$11,1))*(Angebote!$B$14:$B$24<=DATE($D$7,G$11,31))*(Angebote!$P$14:$P$24="offen")*(Angebote!$B$14:$B$24<>"#NV"),Angebote!$S$14:$S$24) -> 0 | U20: =SUMPRODUCT((Angebote!$B$14:$B$24>=DATE($D$7,H$11,1))*(Angebote!$B$14:$B$24<=DATE($D$7,H$11,31))*(Angebote!$P$14:$P$24="offen")*(Angebote!$B$14:$B$24<>"#NV"),Angebote!$S$14:$S$24) -> 0 | V20: =SUMPRODUCT((Angebote!$B$14:$B$24>=DATE($D$7,I$11,1))*(Angebote!$B$14:$B$24<=DATE($D$7,I$11,31))*(Angebote!$P$14:$P$24="offen")*(Angebote!$B$14:$B$24<>"#NV"),Angebote!$S$14:$S$24) -> 0 | W20: =SUMPRODUCT((Angebote!$B$14:$B$24>=DATE($D$7,J$11,1))*(Angebote!$B$14:$B$24<=DATE($D$7,J$11,31))*(Angebote!$P$14:$P$24="offen")*(Angebote!$B$14:$B$24<>"#NV"),Angebote!$S$14:$S$24) -> 0 | X20: =SUMPRODUCT((Angebote!$B$14:$B$24>=DATE($D$7,K$11,1))*(Angebote!$B$14:$B$24<=DATE($D$7,K$11,31))*(Angebote!$P$14:$P$24="offen")*(Angebote!$B$14:$B$24<>"#NV"),Angebote!$S$14:$S$24) -> 0 | Y20: =SUMPRODUCT((Angebote!$B$14:$B$24>=DATE($D$7,L$11,1))*(Angebote!$B$14:$B$24<=DATE($D$7,L$11,31))*(Angebote!$P$14:$P$24="offen")*(Angebote!$B$14:$B$24<>"#NV"),Angebote!$S$14:$S$24) -> 0 | Z20: =SUMPRODUCT((Angebote!$B$14:$B$24>=DATE($D$7,M$11,1))*(Angebote!$B$14:$B$24<=DATE($D$7,M$11,31))*(Angebote!$P$14:$P$24="offen")*(Angebote!$B$14:$B$24<>"#NV"),Angebote!$S$14:$S$24) -> 0 | AA20: =SUMPRODUCT((Angebote!$B$14:$B$24>=DATE($D$7,N$11,1))*(Angebote!$B$14:$B$24<=DATE($D$7,N$11,31))*(Angebote!$P$14:$P$24="offen")*(Angebote!$B$14:$B$24<>"#NV"),Angebote!$S$14:$S$24) -> 0 | AB20: =SUMPRODUCT((Angebote!$B$14:$B$24>=DATE($D$7,O$11,1))*(Angebote!$B$14:$B$24<=DATE($D$7,O$11,31))*(Angebote!$P$14:$P$24="offen")*(Angebote!$B$14:$B$24<>"#NV"),Angebote!$S$14:$S$24) -> 0 | AQ20: 2 | AT20: =IF(AQ20>=AY20,1,IF(AQ20>=AZ20,2,3)) -> 1 | AU20: =AQ20 -> 2 | AW20: =HLOOKUP(AT20,$BB$12:$BD$22,9) -> Handlungsanweisung für grün | AY20: 2 | AZ20: 1 | BB20: Handlungsanweisung für grün | BC20: Handlungsanweisung für gelb | BD20: Handlungsanweisung für rot
R21: jan | S21: jan | T21: feb | U21: feb | V21: mrz | W21: mrz | X21: aprl | Y21: aprl | Z21: mai | AA21: mai | AB21: jun | AC21: jun | AD21: jul | AE21: jul | AF21: aug | AG21: aug | AH21: sept | AI21: sept | AJ21: okt | AK21: okt | AL21: nov | AM21: nov
C22: Auftragsquote | D22: =IF(Q14=0,"",IFERROR(S22/R22,0)) ->  | E22: =IF(R14=0,"",IFERROR(U22/T22,0)) -> 0.6666666667 | F22: =IF(S14=0,"",IFERROR(W22/V22,0)) ->  | G22: =IF(T14=0,"",IFERROR(Y22/X22,0)) ->  | H22: =IF(U14=0,"",IFERROR(AA22/Z22,0)) ->  | I22: =IF(V14=0,"",IFERROR(AC22/AB22,0)) ->  | J22: =IF(W14=0,"",IFERROR(AE22/AD22,0)) ->  | K22: =IF(X14=0,"",IFERROR(AG22/AF22,0)) ->  | L22: =IF(Y14=0,"",IFERROR(AI22/AH22,0)) ->  | M22: =IF(Z14=0,"",IFERROR(AK22/AJ22,0)) ->  | N22: =IF(AA14=0,"",IFERROR(AM22/AL22,0)) ->  | O22: =IF(AB14=0,"",IFERROR(AO22/AN22,0)) ->  | R22: =SUM(IF(YEAR(Angebote!$B$14:$B$23)=$D$7,IF(MONTH(Angebote!$B$14:$B$23)=$D$11,IF(Angebote!$P$14:$P$23<>2,1,)))) -> 0 | S22: =SUM(IF(YEAR(Angebote!$B$14:$B$23)=$D$7,IF(MONTH(Angebote!$B$14:$B$23)=$D$11,IF(Angebote!$P$14:$P$23=1,Angebote!$P$14:$P$23)*1,))) -> 0 | T22: =SUM(IF(YEAR(Angebote!$B$14:$B$23)=$D$7,IF(MONTH(Angebote!$B$14:$B$23)=$E$11,IF(Angebote!$P$14:$P$23<>2,1,)))) -> 3 | U22: =SUM(IF(YEAR(Angebote!$B$14:$B$23)=$D$7,IF(MONTH(Angebote!$B$14:$B$23)=$E$11,IF(Angebote!$P$14:$P$23=1,Angebote!$P$14:$P$23)*1,))) -> 2 | V22: =SUM(IF(YEAR(Angebote!$B$14:$B$23)=$D$7,IF(MONTH(Angebote!$B$14:$B$23)=$F$11,IF(Angebote!$P$14:$P$23<>2,1,)))) -> 3 | W22: =SUM(IF(YEAR(Angebote!$B$14:$B$23)=$D$7,IF(MONTH(Angebote!$B$14:$B$23)=$F$11,IF(Angebote!$P$14:$P$23=1,Angebote!$P$14:$P$23)*1,))) -> 0 | X22: =SUM(IF(YEAR(Angebote!$B$14:$B$23)=$D$7,IF(MONTH(Angebote!$B$14:$B$23)=$G$11,IF(Angebote!$P$14:$P$23<>2,1,)))) -> 0 | Y22: =SUM(IF(YEAR(Angebote!$B$14:$B$23)=$D$7,IF(MONTH(Angebote!$B$14:$B$23)=$G$11,IF(Angebote!$P$14:$P$23=1,Angebote!$P$14:$P$23)*1,))) -> 0 | Z22: =SUM(IF(YEAR(Angebote!$B$14:$B$23)=$D$7,IF(MONTH(Angebote!$B$14:$B$23)=$H$11,IF(Angebote!$P$14:$P$23<>2,1,)))) -> 0 | AA22: =SUM(IF(YEAR(Angebote!$B$14:$B$23)=$D$7,IF(MONTH(Angebote!$B$14:$B$23)=$H$11,IF(Angebote!$P$14:$P$23=1,Angebote!$P$14:$P$23)*1,))) -> 0 | AB22: =SUM(IF(YEAR(Angebote!$B$14:$B$23)=$D$7,IF(MONTH(Angebote!$B$14:$B$23)=$I$11,IF(Angebote!$P$14:$P$23<>2,1,)))) -> 0 | AC22: =SUM(IF(YEAR(Angebote!$B$14:$B$23)=$D$7,IF(MONTH(Angebote!$B$14:$B$23)=$I$11,IF(Angebote!$P$14:$P$23=1,Angebote!$P$14:$P$23)*1,))) -> 0 | AD22: =SUM(IF(YEAR(Angebote!$B$14:$B$23)=$D$7,IF(MONTH(Angebote!$B$14:$B$23)=$J$11,IF(Angebote!$P$14:$P$23<>2,1,)))) -> 0 | AE22: =SUM(IF(YEAR(Angebote!$B$14:$B$23)=$D$7,IF(MONTH(Angebote!$B$14:$B$23)=$J$11,IF(Angebote!$P$14:$P$23=1,Angebote!$P$14:$P$23)*1,))) -> 0 | AF22: =SUM(IF(YEAR(Angebote!$B$14:$B$23)=$D$7,IF(MONTH(Angebote!$B$14:$B$23)=$K$11,IF(Angebote!$P$14:$P$23<>2,1,)))) -> 0 | AG22: =SUM(IF(YEAR(Angebote!$B$14:$B$23)=$D$7,IF(MONTH(Angebote!$B$14:$B$23)=$K$11,IF(Angebote!$P$14:$P$23=1,Angebote!$P$14:$P$23)*1,))) -> 0 | AH22: =SUM(IF(YEAR(Angebote!$B$14:$B$23)=$D$7,IF(MONTH(Angebote!$B$14:$B$23)=$L$11,IF(Angebote!$P$14:$P$23<>2,1,)))) -> 0 | AI22: =SUM(IF(YEAR(Angebote!$B$14:$B$23)=$D$7,IF(MONTH(Angebote!$B$14:$B$23)=$L$11,IF(Angebote!$P$14:$P$23=1,Angebote!$P$14:$P$23)*1,))) -> 0 | AJ22: =SUM(IF(YEAR(Angebote!$B$14:$B$23)=$D$7,IF(MONTH(Angebote!$B$14:$B$23)=$M$11,IF(Angebote!$P$14:$P$23<>2,1,)))) -> 0 | AK22: =SUM(IF(YEAR(Angebote!$B$14:$B$23)=$D$7,IF(MONTH(Angebote!$B$14:$B$23)=$M$11,IF(Angebote!$P$14:$P$23=1,Angebote!$P$14:$P$23)*1,))) -> 0 | AL22: =SUM(IF(YEAR(Angebote!$B$14:$B$23)=$D$7,IF(MONTH(Angebote!$B$14:$B$23)=$N$11,IF(Angebote!$P$14:$P$23<>2,1,)))) -> 0 | AM22: =SUM(IF(YEAR(Angebote!$B$14:$B$23)=$D$7,IF(MONTH(Angebote!$B$14:$B$23)=$N$11,IF(Angebote!$P$14:$P$23=1,Angebote!$P$14:$P$23)*1,))) -> 0 | AN22: =SUM(IF(YEAR(Angebote!$B$14:$B$23)=$D$7,IF(MONTH(Angebote!$B$14:$B$23)=$O$11,IF(Angebote!$P$14:$P$23<>2,1,)))) -> 0 | AO22: =SUM(IF(YEAR(Angebote!$B$14:$B$23)=$D$7,IF(MONTH(Angebote!$B$14:$B$23)=$O$11,IF(Angebote!$P$14:$P$23=1,Angebote!$P$14:$P$23)*1,))) -> 0 | AQ22: =IFERROR(AS22/AR22,0) -> 0.3333333333 | AR22: =SUM(IF(YEAR(Angebote!$B$14:$B$23)=$D$7,IF(Angebote!$P$14:$P$23<>2,1,))) -> 6 | AS22: =SUM(IF(YEAR(Angebote!$B$14:$B$23)=$D$7,IF(Angebote!$P$14:$P$23=1,Angebote!$P$14:$P$23)*1,)) -> 2 | AT22: =IF(AQ22>=AY22,1,IF(AQ22>=AZ22,2,3)) -> 3 | AU22: =AQ22 -> 0.3333333333 | AW22: =HLOOKUP(AT22,$BB$12:$BD$22,11) -> Handlungsanweisung für rot | AY22: 0.8 | AZ22: 0.6 | BB22: Handlungsanweisung für grün | BC22: Handlungsanweisung für gelb | BD22: Handlungsanweisung für rot
AT23: 1
AT24: 1
D25: =DATE($D$7,1,1) -> 2016-01-01 | E25: =DATE($D$7,2,1) -> 2016-02-01 | F25: =DATE($D$7,3,1) -> 2016-03-01 | G25: =DATE($D$7,4,1) -> 2016-04-01 | H25: =DATE($D$7,5,1) -> 2016-05-01 | I25: =DATE($D$7,6,1) -> 2016-06-01 | J25: =DATE($D$7,7,1) -> 2016-07-01 | K25: =DATE($D$7,8,1) -> 2016-08-01 | L25: =DATE($D$7,9,1) -> 2016-09-01 | M25: =DATE($D$7,10,1) -> 2016-10-01 | N25: =DATE($D$7,11,1) -> 2016-11-01 | O25: =DATE($D$7,12,1) -> 2016-12-01 | AT25: 1
C26: Chefinfo Auftragsübersicht | AQ26: Jahr | AT26: 1 | AY26: Grenzwerte | BB26: Handlungsanweisungen
D27: =MONTH(D25) -> 1 | E27: =MONTH(E25) -> 2 | F27: 3 | G27: 4 | H27: 5 | I27: 6 | J27: 7 | K27: 8 | L27: 9 | M27: 10 | N27: 11 | O27: 12 | AT27: 1
D28: Jan | E28: Feb | F28: Mrz | G28: Apr | H28: Mai | I28: Jun | J28: Jul | K28: Aug | L28: Sept | M28: Okt | N28: Nov | O28: Dez | AQ28: kum. | AT28: 1 | AY28: >= grün | AZ28: >= gelb | BA28: rot | BB28: 1 | BC28: 2 | BD28: 3
C29: Prozent im Monat | D29: =IF(Q$30=0,"",Q29) ->  | E29: =IF(R$30=0,"",R29) -> 0.9331466302 | Q29: =SUMPRODUCT((Aufträge!$B$15:$B$24>=DATE($D$7,D$11,1))*(Aufträge!$B$15:$B$24<=DATE($D$7,D$11,31))*(Aufträge!$B$15:$B$24<>"#NV"),Aufträge!$AJ$15:$AJ$24) -> 0 | R29: =SUMPRODUCT((Aufträge!$B$15:$B$24>=DATE($D$7,E$11,1))*(Aufträge!$B$15:$B$24<=DATE($D$7,E$11,31))*(Aufträge!$B$15:$B$24<>"#NV"),Aufträge!$AJ$15:$AJ$24) -> 0.9331466302 | S29: =SUMPRODUCT((Aufträge!$B$15:$B$24>=DATE($D$7,F$11,1))*(Aufträge!$B$15:$B$24<=DATE($D$7,F$11,31))*(Aufträge!$B$15:$B$24<>"#NV"),Aufträge!$AJ$15:$AJ$24) -> 0 | T29: =SUMPRODUCT((Aufträge!$B$15:$B$24>=DATE($D$7,G$11,1))*(Aufträge!$B$15:$B$24<=DATE($D$7,G$11,31))*(Aufträge!$B$15:$B$24<>"#NV"),Aufträge!$AJ$15:$AJ$24) -> 0 | U29: =SUMPRODUCT((Aufträge!$B$15:$B$24>=DATE($D$7,H$11,1))*(Aufträge!$B$15:$B$24<=DATE($D$7,H$11,31))*(Aufträge!$B$15:$B$24<>"#NV"),Aufträge!$AJ$15:$AJ$24) -> 0 | V29: =SUMPRODUCT((Aufträge!$B$15:$B$24>=DATE($D$7,I$11,1))*(Aufträge!$B$15:$B$24<=DATE($D$7,I$11,31))*(Aufträge!$B$15:$B$24<>"#NV"),Aufträge!$AJ$15:$AJ$24) -> 0 | W29: =SUMPRODUCT((Aufträge!$B$15:$B$24>=DATE($D$7,J$11,1))*(Aufträge!$B$15:$B$24<=DATE($D$7,J$11,31))*(Aufträge!$B$15:$B$24<>"#NV"),Aufträge!$AJ$15:$AJ$24) -> 0 | X29: =SUMPRODUCT((Aufträge!$B$15:$B$24>=DATE($D$7,K$11,1))*(Aufträge!$B$15:$B$24<=DATE($D$7,K$11,31))*(Aufträge!$B$15:$B$24<>"#NV"),Aufträge!$AJ$15:$AJ$24) -> 0 | Y29: =SUMPRODUCT((Aufträge!$B$15:$B$24>=DATE($D$7,L$11,1))*(Aufträge!$B$15:$B$24<=DATE($D$7,L$11,31))*(Aufträge!$B$15:$B$24<>"#NV"),Aufträge!$AJ$15:$AJ$24) -> 0 | Z29: =SUMPRODUCT((Aufträge!$B$15:$B$24>=DATE($D$7,M$11,1))*(Aufträge!$B$15:$B$24<=DATE($D$7,M$11,31))*(Aufträge!$B$15:$B$24<>"#NV"),Aufträge!$AJ$15:$AJ$24) -> 0 | AA29: =SUMPRODUCT((Aufträge!$B$15:$B$24>=DATE($D$7,N$11,1))*(Aufträge!$B$15:$B$24<=DATE($D$7,N$11,31))*(Aufträge!$B$15:$B$24<>"#NV"),Aufträge!$AJ$15:$AJ$24) -> 0 | AB29: =SUMPRODUCT((Aufträge!$B$15:$B$24>=DATE($D$7,O$11,1))*(Aufträge!$B$15:$B$24<=DATE($D$7,O$11,31))*(Aufträge!$B$15:$B$24<>"#NV"),Aufträge!$AJ$15:$AJ$24) -> 0 | AQ29: =D29+E29+F29+G29+H29+I29+J29+K29+L29+M29+N29+O29 ->  | AU29: =AQ29 ->  | AW29: =HLOOKUP(AT29,$BB$12:$BD$22,2) ->  | AY29: 2000 | AZ29: 500 | BB29: Handlungsanweisung für grün | BC29: Handlungsanweisung für gelb | BD29: Handlungsanweisung für rot
C30: Anzahl Aufträge | D30: =IF(Q$30=0,"",Q30) ->  | E30: 2 | Q30: =SUMPRODUCT((Aufträge!$B$15:$B$24>=DATE($D$7,D$11,1))*(Aufträge!$B$15:$B$24<=DATE($D$7,D$11,31))*(Aufträge!$B$15:$B$24<>"#NV")*(Aufträge!$B$15:$B$24>0)) -> 0 | R30: =SUMPRODUCT((Aufträge!$B$15:$B$24>=DATE($D$7,E$11,1))*(Aufträge!$B$15:$B$24<=DATE($D$7,E$11,31))*(Aufträge!$B$15:$B$24<>"#NV")*(Aufträge!$B$15:$B$24>0)) -> 2 | S30: =SUMPRODUCT((Aufträge!$B$15:$B$24>=DATE($D$7,F$11,1))*(Aufträge!$B$15:$B$24<=DATE($D$7,F$11,31))*(Aufträge!$B$15:$B$24<>"#NV")*(Aufträge!$B$15:$B$24>0)) -> 0 | T30: =SUMPRODUCT((Aufträge!$B$15:$B$24>=DATE($D$7,G$11,1))*(Aufträge!$B$15:$B$24<=DATE($D$7,G$11,31))*(Aufträge!$B$15:$B$24<>"#NV")*(Aufträge!$B$15:$B$24>0)) -> 0 | U30: =SUMPRODUCT((Aufträge!$B$15:$B$24>=DATE($D$7,H$11,1))*(Aufträge!$B$15:$B$24<=DATE($D$7,H$11,31))*(Aufträge!$B$15:$B$24<>"#NV")*(Aufträge!$B$15:$B$24>0)) -> 0 | V30: =SUMPRODUCT((Aufträge!$B$15:$B$24>=DATE($D$7,I$11,1))*(Aufträge!$B$15:$B$24<=DATE($D$7,I$11,31))*(Aufträge!$B$15:$B$24<>"#NV")*(Aufträge!$B$15:$B$24>0)) -> 0 | W30: =SUMPRODUCT((Aufträge!$B$15:$B$24>=DATE($D$7,J$11,1))*(Aufträge!$B$15:$B$24<=DATE($D$7,J$11,31))*(Aufträge!$B$15:$B$24<>"#NV")*(Aufträge!$B$15:$B$24>0)) -> 0 | X30: =SUMPRODUCT((Aufträge!$B$15:$B$24>=DATE($D$7,K$11,1))*(Aufträge!$B$15:$B$24<=DATE($D$7,K$11,31))*(Aufträge!$B$15:$B$24<>"#NV")*(Aufträge!$B$15:$B$24>0)) -> 0 | Y30: =SUMPRODUCT((Aufträge!$B$15:$B$24>=DATE($D$7,L$11,1))*(Aufträge!$B$15:$B$24<=DATE($D$7,L$11,31))*(Aufträge!$B$15:$B$24<>"#NV")*(Aufträge!$B$15:$B$24>0)) -> 0 | Z30: =SUMPRODUCT((Aufträge!$B$15:$B$24>=DATE($D$7,M$11,1))*(Aufträge!$B$15:$B$24<=DATE($D$7,M$11,31))*(Aufträge!$B$15:$B$24<>"#NV")*(Aufträge!$B$15:$B$24>0)) -> 0 | AA30: =SUMPRODUCT((Aufträge!$B$15:$B$24>=DATE($D$7,N$11,1))*(Aufträge!$B$15:$B$24<=DATE($D$7,N$11,31))*(Aufträge!$B$15:$B$24<>"#NV")*(Aufträge!$B$15:$B$24>0)) -> 0 | AB30: =SUMPRODUCT((Aufträge!$B$15:$B$24>=DATE($D$7,O$11,1))*(Aufträge!$B$15:$B$24<=DATE($D$7,O$11,31))*(Aufträge!$B$15:$B$24<>"#NV")*(Aufträge!$B$15:$B$24>0)) -> 0 | AQ30: =D30+E30+F30+G30+H30+I30+J30+K30+L30+M30+N30+O30 ->  | AU30: =AQ30 ->  | AW30: =HLOOKUP(AT30,$BB$28:$BD$37,3) ->  | AY30: 10 | AZ30: 6 | BB30: Handlungsanweisung für grün | BC30: Handlungsanweisung für gelb | BD30: Handlungsanweisung für rot
C31: nicht abgerechnete Aufträge in T€ | E31: 485 | Q31: =SUMPRODUCT((Aufträge!$B$15:$B$24>=DATE($D$7,D$11,1))*(Aufträge!$B$15:$B$24<=DATE($D$7,D$11,31))*(Aufträge!$B$15:$B$24<>"#NV"),(Aufträge!$O$15:$O$24)) -> 0 | R31: =SUMPRODUCT((Aufträge!$B$15:$B$24>=DATE($D$7,E$11,1))*(Aufträge!$B$15:$B$24<=DATE($D$7,E$11,31))*(Aufträge!$B$15:$B$24<>"#NV"),(Aufträge!$O$15:$O$24)) -> 485 | S31: =SUMPRODUCT((Aufträge!$B$15:$B$24>=DATE($D$7,F$11,1))*(Aufträge!$B$15:$B$24<=DATE($D$7,F$11,31))*(Aufträge!$B$15:$B$24<>"#NV"),(Aufträge!$O$15:$O$24)) -> 0 | T31: =SUMPRODUCT((Aufträge!$B$15:$B$24>=DATE($D$7,G$11,1))*(Aufträge!$B$15:$B$24<=DATE($D$7,G$11,31))*(Aufträge!$B$15:$B$24<>"#NV"),(Aufträge!$O$15:$O$24)) -> 0 | U31: =SUMPRODUCT((Aufträge!$B$15:$B$24>=DATE($D$7,H$11,1))*(Aufträge!$B$15:$B$24<=DATE($D$7,H$11,31))*(Aufträge!$B$15:$B$24<>"#NV"),(Aufträge!$O$15:$O$24)) -> 0 | V31: =SUMPRODUCT((Aufträge!$B$15:$B$24>=DATE($D$7,I$11,1))*(Aufträge!$B$15:$B$24<=DATE($D$7,I$11,31))*(Aufträge!$B$15:$B$24<>"#NV"),(Aufträge!$O$15:$O$24)) -> 0 | W31: =SUMPRODUCT((Aufträge!$B$15:$B$24>=DATE($D$7,J$11,1))*(Aufträge!$B$15:$B$24<=DATE($D$7,J$11,31))*(Aufträge!$B$15:$B$24<>"#NV"),(Aufträge!$O$15:$O$24)) -> 0 | X31: =SUMPRODUCT((Aufträge!$B$15:$B$24>=DATE($D$7,K$11,1))*(Aufträge!$B$15:$B$24<=DATE($D$7,K$11,31))*(Aufträge!$B$15:$B$24<>"#NV"),(Aufträge!$O$15:$O$24)) -> 0 | Y31: =SUMPRODUCT((Aufträge!$B$15:$B$24>=DATE($D$7,L$11,1))*(Aufträge!$B$15:$B$24<=DATE($D$7,L$11,31))*(Aufträge!$B$15:$B$24<>"#NV"),(Aufträge!$O$15:$O$24)) -> 0 | Z31: =SUMPRODUCT((Aufträge!$B$15:$B$24>=DATE($D$7,M$11,1))*(Aufträge!$B$15:$B$24<=DATE($D$7,M$11,31))*(Aufträge!$B$15:$B$24<>"#NV"),(Aufträge!$O$15:$O$24)) -> 0 | AA31: =SUMPRODUCT((Aufträge!$B$15:$B$24>=DATE($D$7,N$11,1))*(Aufträge!$B$15:$B$24<=DATE($D$7,N$11,31))*(Aufträge!$B$15:$B$24<>"#NV"),(Aufträge!$O$15:$O$24)) -> 0 | AB31: =SUMPRODUCT((Aufträge!$B$15:$B$24>=DATE($D$7,O$11,1))*(Aufträge!$B$15:$B$24<=DATE($D$7,O$11,31))*(Aufträge!$B$15:$B$24<>"#NV"),(Aufträge!$O$15:$O$24)) -> 0 | AQ31: =Q31+R31+S31+T31+U31+V31+W31+X31+Y31+Z31+AA31+AB31 -> 485 | AT31: 2 | AU31: =AQ31 -> 485 | AW31: =HLOOKUP(AT31,$BB$28:$BD$37,4) -> Handlungsanweisung für gelb | AY31: 1000 | AZ31: 400 | BB31: Handlungsanweisung für grün | BC31: Handlungsanweisung für gelb | BD31: Handlungsanweisung für rot
C32: TF Arbeiten fertiggestellt % | E32: 0 | AQ32: =(D32+E32+F32+G32+H32+I32+J32+K32+L32+M32+N32+O32)/AR32 ->  | AR32: =COUNTIF(D32:O32,">0") -> 0 | AW32: =HLOOKUP(AT32,$BB$28:$BD$37,5) ->  | AY32: 0.5 | AZ32: 0.3 | BB32: Handlungsanweisung für grün | BC32: Handlungsanweisung für gelb | BD32: Handlungsanweisung für rot
C33: Fertigstellungsstand % | E33: 0.495257732 | Q33: =IFERROR((SUMPRODUCT((Aufträge!$B$15:$B$24>=DATE($D$7,D$11,1))*(Aufträge!$B$15:$B$24<=DATE($D$7,D$11,31))*(Aufträge!$B$15:$B$24<>"#NV"),(Aufträge!$AL$15:$AL$24)))/(SUMPRODUCT((Aufträge!$B$15:$B$24>=DATE($D$7,D$11,1))*(Aufträge!$B$15:$B$24<=DATE($D$7,D$11,31))*(Aufträge!$B$15:$B$24<>"#NV"),(Aufträge!$O$15:$O$24))),0) -> 0 | R33: =IFERROR((SUMPRODUCT((Aufträge!$B$15:$B$24>=DATE($D$7,E$11,1))*(Aufträge!$B$15:$B$24<=DATE($D$7,E$11,31))*(Aufträge!$B$15:$B$24<>"#NV"),(Aufträge!$AL$15:$AL$24)))/(SUMPRODUCT((Aufträge!$B$15:$B$24>=DATE($D$7,E$11,1))*(Aufträge!$B$15:$B$24<=DATE($D$7,E$11,31))*(Aufträge!$B$15:$B$24<>"#NV"),(Aufträge!$O$15:$O$24))),0) -> 0.495257732 | S33: =IFERROR((SUMPRODUCT((Aufträge!$B$15:$B$24>=DATE($D$7,F$11,1))*(Aufträge!$B$15:$B$24<=DATE($D$7,F$11,31))*(Aufträge!$B$15:$B$24<>"#NV"),(Aufträge!$AL$15:$AL$24)))/(SUMPRODUCT((Aufträge!$B$15:$B$24>=DATE($D$7,F$11,1))*(Aufträge!$B$15:$B$24<=DATE($D$7,F$11,31))*(Aufträge!$B$15:$B$24<>"#NV"),(Aufträge!$O$15:$O$24))),0) -> 0 | T33: =IFERROR((SUMPRODUCT((Aufträge!$B$15:$B$24>=DATE($D$7,G$11,1))*(Aufträge!$B$15:$B$24<=DATE($D$7,G$11,31))*(Aufträge!$B$15:$B$24<>"#NV"),(Aufträge!$AL$15:$AL$24)))/(SUMPRODUCT((Aufträge!$B$15:$B$24>=DATE($D$7,G$11,1))*(Aufträge!$B$15:$B$24<=DATE($D$7,G$11,31))*(Aufträge!$B$15:$B$24<>"#NV"),(Aufträge!$O$15:$O$24))),0) -> 0 | U33: =IFERROR((SUMPRODUCT((Aufträge!$B$15:$B$24>=DATE($D$7,H$11,1))*(Aufträge!$B$15:$B$24<=DATE($D$7,H$11,31))*(Aufträge!$B$15:$B$24<>"#NV"),(Aufträge!$AL$15:$AL$24)))/(SUMPRODUCT((Aufträge!$B$15:$B$24>=DATE($D$7,H$11,1))*(Aufträge!$B$15:$B$24<=DATE($D$7,H$11,31))*(Aufträge!$B$15:$B$24<>"#NV"),(Aufträge!$O$15:$O$24))),0) -> 0 | V33: =IFERROR((SUMPRODUCT((Aufträge!$B$15:$B$24>=DATE($D$7,I$11,1))*(Aufträge!$B$15:$B$24<=DATE($D$7,I$11,31))*(Aufträge!$B$15:$B$24<>"#NV"),(Aufträge!$AL$15:$AL$24)))/(SUMPRODUCT((Aufträge!$B$15:$B$24>=DATE($D$7,I$11,1))*(Aufträge!$B$15:$B$24<=DATE($D$7,I$11,31))*(Aufträge!$B$15:$B$24<>"#NV"),(Aufträge!$O$15:$O$24))),0) -> 0 | W33: =IFERROR((SUMPRODUCT((Aufträge!$B$15:$B$24>=DATE($D$7,J$11,1))*(Aufträge!$B$15:$B$24<=DATE($D$7,J$11,31))*(Aufträge!$B$15:$B$24<>"#NV"),(Aufträge!$AL$15:$AL$24)))/(SUMPRODUCT((Aufträge!$B$15:$B$24>=DATE($D$7,J$11,1))*(Aufträge!$B$15:$B$24<=DATE($D$7,J$11,31))*(Aufträge!$B$15:$B$24<>"#NV"),(Aufträge!$O$15:$O$24))),0) -> 0 | X33: =IFERROR((SUMPRODUCT((Aufträge!$B$15:$B$24>=DATE($D$7,K$11,1))*(Aufträge!$B$15:$B$24<=DATE($D$7,K$11,31))*(Aufträge!$B$15:$B$24<>"#NV"),(Aufträge!$AL$15:$AL$24)))/(SUMPRODUCT((Aufträge!$B$15:$B$24>=DATE($D$7,K$11,1))*(Aufträge!$B$15:$B$24<=DATE($D$7,K$11,31))*(Aufträge!$B$15:$B$24<>"#NV"),(Aufträge!$O$15:$O$24))),0) -> 0 | Y33: =IFERROR((SUMPRODUCT((Aufträge!$B$15:$B$24>=DATE($D$7,L$11,1))*(Aufträge!$B$15:$B$24<=DATE($D$7,L$11,31))*(Aufträge!$B$15:$B$24<>"#NV"),(Aufträge!$AL$15:$AL$24)))/(SUMPRODUCT((Aufträge!$B$15:$B$24>=DATE($D$7,L$11,1))*(Aufträge!$B$15:$B$24<=DATE($D$7,L$11,31))*(Aufträge!$B$15:$B$24<>"#NV"),(Aufträge!$O$15:$O$24))),0) -> 0 | Z33: =IFERROR((SUMPRODUCT((Aufträge!$B$15:$B$24>=DATE($D$7,M$11,1))*(Aufträge!$B$15:$B$24<=DATE($D$7,M$11,31))*(Aufträge!$B$15:$B$24<>"#NV"),(Aufträge!$AL$15:$AL$24)))/(SUMPRODUCT((Aufträge!$B$15:$B$24>=DATE($D$7,M$11,1))*(Aufträge!$B$15:$B$24<=DATE($D$7,M$11,31))*(Aufträge!$B$15:$B$24<>"#NV"),(Aufträge!$O$15:$O$24))),0) -> 0 | AA33: =IFERROR((SUMPRODUCT((Aufträge!$B$15:$B$24>=DATE($D$7,N$11,1))*(Aufträge!$B$15:$B$24<=DATE($D$7,N$11,31))*(Aufträge!$B$15:$B$24<>"#NV"),(Aufträge!$AL$15:$AL$24)))/(SUMPRODUCT((Aufträge!$B$15:$B$24>=DATE($D$7,N$11,1))*(Aufträge!$B$15:$B$24<=DATE($D$7,N$11,31))*(Aufträge!$B$15:$B$24<>"#NV"),(Aufträge!$O$15:$O$24))),0) -> 0 | AB33: =IFERROR((SUMPRODUCT((Aufträge!$B$15:$B$24>=DATE($D$7,O$11,1))*(Aufträge!$B$15:$B$24<=DATE($D$7,O$11,31))*(Aufträge!$B$15:$B$24<>"#NV"),(Aufträge!$AL$15:$AL$24)))/(SUMPRODUCT((Aufträge!$B$15:$B$24>=DATE($D$7,O$11,1))*(Aufträge!$B$15:$B$24<=DATE($D$7,O$11,31))*(Aufträge!$B$15:$B$24<>"#NV"),(Aufträge!$O$15:$O$24))),0) -> 0 | AQ33: =IFERROR((SUMPRODUCT((YEAR(Angebote!$B$14:$B$23)=$D$7)*(Aufträge!$B$15:$B$24<>"#NV"),(Aufträge!$AL$15:$AL$24)))/(SUMPRODUCT((YEAR(Angebote!$B$14:$B$23)=$D$7)*(Aufträge!$B$15:$B$24<>"#NV"),(Aufträge!$O$15:$O$24))),0) -> 0.495257732 | AT33: 3 | AU33: 0.495257732 | AW33: =HLOOKUP(AT33,$BB$28:$BD$37,6) -> Handlungsanweisung für rot | AY33: 0.8 | AZ33: 0.6 | BB33: Handlungsanweisung für grün | BC33: Handlungsanweisung für gelb | BD33: Handlungsanweisung für rot
C34: TF Arbeiten Bestand in T€ | E34: 240.2 | Q34: =SUMPRODUCT((Aufträge!$B$15:$B$24>=DATE($D$7,D$11,1))*(Aufträge!$B$15:$B$24<=DATE($D$7,D$11,31))*(Aufträge!$B$15:$B$24<>"#NV"),(Aufträge!$AL$15:$AL$24)) -> 0 | R34: =SUMPRODUCT((Aufträge!$B$15:$B$24>=DATE($D$7,E$11,1))*(Aufträge!$B$15:$B$24<=DATE($D$7,E$11,31))*(Aufträge!$B$15:$B$24<>"#NV"),(Aufträge!$AL$15:$AL$24)) -> 240.2 | S34: =SUMPRODUCT((Aufträge!$B$15:$B$24>=DATE($D$7,F$11,1))*(Aufträge!$B$15:$B$24<=DATE($D$7,F$11,31))*(Aufträge!$B$15:$B$24<>"#NV"),(Aufträge!$AL$15:$AL$24)) -> 0 | T34: =SUMPRODUCT((Aufträge!$B$15:$B$24>=DATE($D$7,G$11,1))*(Aufträge!$B$15:$B$24<=DATE($D$7,G$11,31))*(Aufträge!$B$15:$B$24<>"#NV"),(Aufträge!$AL$15:$AL$24)) -> 0 | U34: =SUMPRODUCT((Aufträge!$B$15:$B$24>=DATE($D$7,H$11,1))*(Aufträge!$B$15:$B$24<=DATE($D$7,H$11,31))*(Aufträge!$B$15:$B$24<>"#NV"),(Aufträge!$AL$15:$AL$24)) -> 0 | V34: =SUMPRODUCT((Aufträge!$B$15:$B$24>=DATE($D$7,I$11,1))*(Aufträge!$B$15:$B$24<=DATE($D$7,I$11,31))*(Aufträge!$B$15:$B$24<>"#NV"),(Aufträge!$AL$15:$AL$24)) -> 0 | W34: =SUMPRODUCT((Aufträge!$B$15:$B$24>=DATE($D$7,J$11,1))*(Aufträge!$B$15:$B$24<=DATE($D$7,J$11,31))*(Aufträge!$B$15:$B$24<>"#NV"),(Aufträge!$AL$15:$AL$24)) -> 0 | X34: =SUMPRODUCT((Aufträge!$B$15:$B$24>=DATE($D$7,K$11,1))*(Aufträge!$B$15:$B$24<=DATE($D$7,K$11,31))*(Aufträge!$B$15:$B$24<>"#NV"),(Aufträge!$AL$15:$AL$24)) -> 0 | Y34: =SUMPRODUCT((Aufträge!$B$15:$B$24>=DATE($D$7,L$11,1))*(Aufträge!$B$15:$B$24<=DATE($D$7,L$11,31))*(Aufträge!$B$15:$B$24<>"#NV"),(Aufträge!$AL$15:$AL$24)) -> 0 | Z34: =SUMPRODUCT((Aufträge!$B$15:$B$24>=DATE($D$7,M$11,1))*(Aufträge!$B$15:$B$24<=DATE($D$7,M$11,31))*(Aufträge!$B$15:$B$24<>"#NV"),(Aufträge!$AL$15:$AL$24)) -> 0 | AA34: =SUMPRODUCT((Aufträge!$B$15:$B$24>=DATE($D$7,N$11,1))*(Aufträge!$B$15:$B$24<=DATE($D$7,N$11,31))*(Aufträge!$B$15:$B$24<>"#NV"),(Aufträge!$AL$15:$AL$24)) -> 0 | AB34: =SUMPRODUCT((Aufträge!$B$15:$B$24>=DATE($D$7,O$11,1))*(Aufträge!$B$15:$B$24<=DATE($D$7,O$11,31))*(Aufträge!$B$15:$B$24<>"#NV"),(Aufträge!$AL$15:$AL$24)) -> 0 | AQ34: =Q34+R34+S34+T34+U34+V34+W34+X34+Y34+Z34+AA34+AB34 -> 240.2 | AT34: 2 | AU34: 240.2 | AW34: =HLOOKUP(AT34,$BB$28:$BD$37,7) -> Handlungsanweisung für gelb | AY34: 500 | AZ34: 200 | BB34: Handlungsanweisung für grün | BC34: Handlungsanweisung für gelb | BD34: Handlungsanweisung für rot
D35: =IFERROR(D36/D34,-1) -> -1 | E35: =IFERROR(E36/E34,-1) -> 0.6244796003 | F35: -1 | G35: -1 | H35: -1 | I35: -1 | J35: -1 | K35: -1 | L35: -1 | M35: -1 | N35: -1 | O35: -1 | Q35: =IFERROR(Q36/Q34,-1) -> -1 | R35: =IFERROR(R36/R34,-1) -> 0.6244796003 | S35: =IFERROR(S36/S34,-1) -> -1 | T35: =IFERROR(T36/T34,-1) -> -1 | U35: =IFERROR(U36/U34,-1) -> -1 | V35: =IFERROR(V36/V34,-1) -> -1 | W35: =IFERROR(W36/W34,-1) -> -1 | X35: =IFERROR(X36/X34,-1) -> -1 | Y35: =IFERROR(Y36/Y34,-1) -> -1 | Z35: =IFERROR(Z36/Z34,-1) -> -1 | AA35: =IFERROR(AA36/AA34,-1) -> -1 | AB35: =IFERROR(AB36/AB34,-1) -> -1 | AC35: =IFERROR(AC36/AC34,-1) -> -1 | AD35: =IFERROR(AD36/AD34,-1) -> -1 | AE35: =IFERROR(AE36/AE34,-1) -> -1 | AF35: =IFERROR(AF36/AF34,-1) -> -1 | AG35: =IFERROR(AG36/AG34,-1) -> -1 | AH35: =IFERROR(AH36/AH34,-1) -> -1 | AI35: =IFERROR(AI36/AI34,-1) -> -1 | AJ35: =IFERROR(AJ36/AJ34,-1) -> -1 | AK35: =IFERROR(AK36/AK34,-1) -> -1 | AL35: =IFERROR(AL36/AL34,-1) -> -1 | AM35: =IFERROR(AM36/AM34,-1) -> -1 | AP35: =IFERROR(AP36/AP34,-1) -> -1 | AQ35: =IFERROR(AQ36/AQ34,-1) -> 0.6244796003 | AT35: 1
C36: gestellte TR in T€ | D36: =IF(Q$30=0,"",Q36) ->  | E36: =IF(R$30=0,"",R36) -> 150 | Q36: =SUMPRODUCT((Aufträge!$B$15:$B$24>=DATE($D$7,D$11,1))*(Aufträge!$B$15:$B$24<=DATE($D$7,D$11,31))*(Aufträge!$B$15:$B$24<>"#NV"),(Aufträge!$AB$15:$AB$24)) -> 0 | R36: =SUMPRODUCT((Aufträge!$B$15:$B$24>=DATE($D$7,E$11,1))*(Aufträge!$B$15:$B$24<=DATE($D$7,E$11,31))*(Aufträge!$B$15:$B$24<>"#NV"),(Aufträge!$AB$15:$AB$24)) -> 150 | S36: =SUMPRODUCT((Aufträge!$B$15:$B$24>=DATE($D$7,F$11,1))*(Aufträge!$B$15:$B$24<=DATE($D$7,F$11,31))*(Aufträge!$B$15:$B$24<>"#NV"),(Aufträge!$AB$15:$AB$24)) -> 0 | T36: =SUMPRODUCT((Aufträge!$B$15:$B$24>=DATE($D$7,G$11,1))*(Aufträge!$B$15:$B$24<=DATE($D$7,G$11,31))*(Aufträge!$B$15:$B$24<>"#NV"),(Aufträge!$AB$15:$AB$24)) -> 0 | U36: =SUMPRODUCT((Aufträge!$B$15:$B$24>=DATE($D$7,H$11,1))*(Aufträge!$B$15:$B$24<=DATE($D$7,H$11,31))*(Aufträge!$B$15:$B$24<>"#NV"),(Aufträge!$AB$15:$AB$24)) -> 0 | V36: =SUMPRODUCT((Aufträge!$B$15:$B$24>=DATE($D$7,I$11,1))*(Aufträge!$B$15:$B$24<=DATE($D$7,I$11,31))*(Aufträge!$B$15:$B$24<>"#NV"),(Aufträge!$AB$15:$AB$24)) -> 0 | W36: =SUMPRODUCT((Aufträge!$B$15:$B$24>=DATE($D$7,J$11,1))*(Aufträge!$B$15:$B$24<=DATE($D$7,J$11,31))*(Aufträge!$B$15:$B$24<>"#NV"),(Aufträge!$AB$15:$AB$24)) -> 0 | X36: =SUMPRODUCT((Aufträge!$B$15:$B$24>=DATE($D$7,K$11,1))*(Aufträge!$B$15:$B$24<=DATE($D$7,K$11,31))*(Aufträge!$B$15:$B$24<>"#NV"),(Aufträge!$AB$15:$AB$24)) -> 0 | Y36: =SUMPRODUCT((Aufträge!$B$15:$B$24>=DATE($D$7,L$11,1))*(Aufträge!$B$15:$B$24<=DATE($D$7,L$11,31))*(Aufträge!$B$15:$B$24<>"#NV"),(Aufträge!$AB$15:$AB$24)) -> 0 | Z36: =SUMPRODUCT((Aufträge!$B$15:$B$24>=DATE($D$7,M$11,1))*(Aufträge!$B$15:$B$24<=DATE($D$7,M$11,31))*(Aufträge!$B$15:$B$24<>"#NV"),(Aufträge!$AB$15:$AB$24)) -> 0 | AA36: =SUMPRODUCT((Aufträge!$B$15:$B$24>=DATE($D$7,N$11,1))*(Aufträge!$B$15:$B$24<=DATE($D$7,N$11,31))*(Aufträge!$B$15:$B$24<>"#NV"),(Aufträge!$AB$15:$AB$24)) -> 0 | AB36: =SUMPRODUCT((Aufträge!$B$15:$B$24>=DATE($D$7,O$11,1))*(Aufträge!$B$15:$B$24<=DATE($D$7,O$11,31))*(Aufträge!$B$15:$B$24<>"#NV"),(Aufträge!$AB$15:$AB$24)) -> 0 | AQ36: =Q36+R36+S36+T36+U36+V36+W36+X36+Y36+Z36+AA36+AB36 -> 150 | AT36: =IF(AQ35>=AY36,1,IF(AQ35>=AZ36,2,3)) -> 3 | AU36: =AQ35 -> 0.6244796003 | AW36: =HLOOKUP(AT36,$BB$28:$BD$37,9) -> Handlungsanweisung für rot | AY36: =Einrichtung!C33 -> 0.7 | AZ36: =AY36-5% -> 0.65 | BB36: Handlungsanweisung für grün | BC36: Handlungsanweisung für gelb | BD36: Handlungsanweisung für rot
C37: Auslastung in Std. | D37: =IF(Q$30=0,"",Q37) ->  | E37: =IF(R$30=0,"",R37) -> 3956.576169 | Q37: =((SUMPRODUCT((Aufträge!$B$15:$B$24>=DATE($D$7,D$11,1))*(Aufträge!$B$15:$B$24<=DATE($D$7,D$11,31))*(Aufträge!$B$15:$B$24<>"#NV"),(Aufträge!$AR$15:$AR$24)))) -> 0 | R37: =((SUMPRODUCT((Aufträge!$B$15:$B$24>=DATE($D$7,E$11,1))*(Aufträge!$B$15:$B$24<=DATE($D$7,E$11,31))*(Aufträge!$B$15:$B$24<>"#NV"),(Aufträge!$AR$15:$AR$24)))) -> 3956.576169 | S37: =((SUMPRODUCT((Aufträge!$B$15:$B$24>=DATE($D$7,F$11,1))*(Aufträge!$B$15:$B$24<=DATE($D$7,F$11,31))*(Aufträge!$B$15:$B$24<>"#NV"),(Aufträge!$AR$15:$AR$24)))) -> 0 | T37: =((SUMPRODUCT((Aufträge!$B$15:$B$24>=DATE($D$7,G$11,1))*(Aufträge!$B$15:$B$24<=DATE($D$7,G$11,31))*(Aufträge!$B$15:$B$24<>"#NV"),(Aufträge!$AR$15:$AR$24)))) -> 0 | U37: =((SUMPRODUCT((Aufträge!$B$15:$B$24>=DATE($D$7,H$11,1))*(Aufträge!$B$15:$B$24<=DATE($D$7,H$11,31))*(Aufträge!$B$15:$B$24<>"#NV"),(Aufträge!$AR$15:$AR$24)))) -> 0 | V37: =((SUMPRODUCT((Aufträge!$B$15:$B$24>=DATE($D$7,I$11,1))*(Aufträge!$B$15:$B$24<=DATE($D$7,I$11,31))*(Aufträge!$B$15:$B$24<>"#NV"),(Aufträge!$AR$15:$AR$24)))) -> 0 | W37: =((SUMPRODUCT((Aufträge!$B$15:$B$24>=DATE($D$7,J$11,1))*(Aufträge!$B$15:$B$24<=DATE($D$7,J$11,31))*(Aufträge!$B$15:$B$24<>"#NV"),(Aufträge!$AR$15:$AR$24)))) -> 0 | X37: =((SUMPRODUCT((Aufträge!$B$15:$B$24>=DATE($D$7,K$11,1))*(Aufträge!$B$15:$B$24<=DATE($D$7,K$11,31))*(Aufträge!$B$15:$B$24<>"#NV"),(Aufträge!$AR$15:$AR$24)))) -> 0 | Y37: =((SUMPRODUCT((Aufträge!$B$15:$B$24>=DATE($D$7,L$11,1))*(Aufträge!$B$15:$B$24<=DATE($D$7,L$11,31))*(Aufträge!$B$15:$B$24<>"#NV"),(Aufträge!$AR$15:$AR$24)))) -> 0 | Z37: =((SUMPRODUCT((Aufträge!$B$15:$B$24>=DATE($D$7,M$11,1))*(Aufträge!$B$15:$B$24<=DATE($D$7,M$11,31))*(Aufträge!$B$15:$B$24<>"#NV"),(Aufträge!$AR$15:$AR$24)))) -> 0 | AA37: =((SUMPRODUCT((Aufträge!$B$15:$B$24>=DATE($D$7,N$11,1))*(Aufträge!$B$15:$B$24<=DATE($D$7,N$11,31))*(Aufträge!$B$15:$B$24<>"#NV"),(Aufträge!$AR$15:$AR$24)))) -> 0 | AB37: =((SUMPRODUCT((Aufträge!$B$15:$B$24>=DATE($D$7,O$11,1))*(Aufträge!$B$15:$B$24<=DATE($D$7,O$11,31))*(Aufträge!$B$15:$B$24<>"#NV"),(Aufträge!$AR$15:$AR$24)))) -> 0 | AQ37: 3956.576169 | AT37: 1 | AU37: =AQ37 -> 3956.576169 | AW37: =HLOOKUP(AT37,$BB$28:$BD$37,10) -> Handlungsanweisung für grün | AY37: 2 | AZ37: 1 | BB37: Handlungsanweisung für grün | BC37: Handlungsanweisung für gelb | BD37: Handlungsanweisung für rot

Sheet Angebote
A2: Auftragsplanung | Angebotsübersicht | H2: =TODAY() -> 2016-08-09
A4: =Start!AA4&" "&"Erfassungsdatum: "&TEXT(Start!E16,"TT.MM.JJJJ")&" "&"für Monat: "&TEXT(Start!AA46,"MM/JJJJ")&" "&"erfasst von: "&TEXT(Start!E17,"") -> Firma: Mustermann GmbH Erfassungsdatum: 10.05.2016 für Monat: 04/2016 erfasst von: Max Muster
J5: privat
J6: gewerblich
J7: Architekt
J8: Bauträger
J9: öffentl. Hand
J10: sonstige
A11: Angebotsübersicht | O11: Angebotsstatus | P11: Angebotsstatus
A12: lfd. Nr. | J12: Angebots-wert in T€ | K12: Angebote offen in T€ | Q12: Auftrags -wert in T€
B13: Angebots- datum | C13: Angebots Nr. | D13: Auftraggeber | E13: Herkunft | F13: Bau- vorhaben | G13: Produkt- bereich | H13: Ort | I13: Telefon | L13: Ausführungs-zeitraum | M13: Entscheidungs-zeitraum | O13: Entschei- dungsstatus | P13: Status | R13: Kommentar
A14: 1 | B14: 2016-02-01 | C14: 15477 | D14: Fa. Maier | E14: gewerblich | F14: Einkaufsmarkt | G14: Gewerbebau | H14: München | J14: 300 | K14: =IF(P14="offen",J14,"") ->  | L14: 2016-04-01 | M14: 2016-03-01 | N14: = | P14: 1 | Q14: =IF(OR(P14=1,P14=2),J14,"") -> 300 | S14: =IF(P14="offen",1,0) -> 0 | T14: =Einrichtung!B13 -> Neubau-Privatkd. | U14: =IF(P14=1,J14,0) -> 300 | W14: offen
A15: 2 | B15: 2016-02-15 | C15: 15478 | D15: Fa. Huber | E15: Architekt | F15: Hallen | G15: Gewerbebau | H15: Rosenheim | J15: 240 | K15: =IF(P15="offen",J15,"") ->  | L15: Mai | M15: 2016-04-01 | P15: 0 | Q15: =IF(OR(P15=1,P15=2),J15,"") ->  | R15: zu teuer-5%, Fa. Mittermeier hats bekommen! | S15: =IF(P15="offen",1,0) -> 0 | T15: =Einrichtung!B14 -> Gewerbebau | W15: 0
A16: 3 | B16: 2016-02-20 | C16: 15479 | D16: Herr Staber | E16: privat | F16: EFH | G16: Neubau-Privatkd. | H16: Ampfing | J16: 180 | L16: Mai | M16: 2016-04-01 | P16: 1 | Q16: 180 | S16: 0 | T16: =Einrichtung!B15 -> Renovierung | W16: 1
A17: 4 | B17: 2016-03-01 | C17: 15479 | D17: Fa. Müller | E17: Bauträger | F17: MFH | G17: Bauträger | H17: Wasserburg | J17: 390 | K17: 390 | L17: 2016-06-01 | M17: 2016-04-01 | P17: =IF(J17<>"","offen","") -> offen | S17: 1 | T17: =Einrichtung!B16 -> Umbau | W17: 2
A18: 5 | B18: 2016-03-15 | D18: Fa. Müller | E18: Bauträger | F18: MFH | G18: Bauträger | H18: Wasserburg | J18: 420 | L18: 2016-06-01 | M18: 2016-04-01 | P18: 3 | S18: 0 | T18: =Einrichtung!B17 -> Bauträger | W18: 3
A19: 6 | B19: 2016-03-18 | C19: 15480 | D19: Herr Winter | E19: privat | F19: EFH | G19: Umbau | H19: Mühldorf | J19: 100 | L19: 2016-10-01 | M19: April | P19: versch. | R19: soll im Dezember 16 entschieden werden | S19: 0 | W19: versch.
A20: 7 | S20: 0
A21: 8 | P21: =IF(J21<>"","offen","") ->  | S21: 0
A22: 9 | S22: 0
A23: 10 | S23: 0
V24: offen | W24: 0 | X24: 1 | Y24: 2 | Z24: versch.
J25: =SUBTOTAL(2,K14:K23)&" offene Angebote mit einem Angebotswert von T€" -> 0 offene Angebote mit einem Angebotswert von T€ | K25: =SUBTOTAL(9,K14:K23) -> 0 | V25: =SUM(IF($P$14:$P$23="offen",1)) -> 1 | W25: =SUM(IF($P$14:$P$23=0,1)) -> 1 | X25: =SUM(IF($P$14:$P$23=1,1)) -> 2 | Y25: =SUM(IF($P$14:$P$23=2,1)) -> 0 | Z25: =SUM(IF($P$14:$P$23="versch.",1)) -> 1
O27: 3 erhaltene Aufträge mit einem Auftragswert von TE | P27: =X27&" erhaltene Folgeaufträge mit einem Auftragswert von T€" -> 0 erhaltene Folgeaufträge mit einem Auftragswert von T€ | Q27: =SUMPRODUCT(SUBTOTAL(9,INDIRECT("Q"&ROW(14:23)))*(P14:P23=2)) -> 0 | X27: =SUMPRODUCT(SUBTOTAL(3,INDIRECT("P"&ROW(14:23)))*(P14:P23=2)) -> 0
V28: ges
P29: =X29 &" erhaltene Aufträge mit einem Auftragswert von T€" -> 2 erhaltene Aufträge mit einem Auftragswert von T€ | Q29: =SUMPRODUCT(SUBTOTAL(9,INDIRECT("Q"&ROW(14:23)))*(P14:P23=1)) -> 480 | V29: =SUBTOTAL(2,J14:J23)-Y25 -> 3 | W29: =SUM(IF($P$14:$P$23=1,1)) -> 2 | X29: =SUMPRODUCT(SUBTOTAL(3,INDIRECT("P"&ROW(14:23)))*(P14:P23=1)) -> 2
P31: Auftragsquote nach Spaltenfilter | Q31: =SUBTOTAL(2,Q14:Q23)/SUBTOTAL(2,J14:J23) -> 0.6666666667
U32: Jahr | V32: quote | W32: Angebote | X32: Anzahl Aufträge
M33: Auftragsquote | P33: 2016 | Q33: =U42/V42 -> 0.3333333333 | U33: 2011 | V33: =IF($W$33=0,"-",$X$33/$W$33) ->  | W33: =SUM(IF(YEAR($B$14:$B$23)=$P$33,IF($P$14:$P$23<>2,1,))) -> 6 | X33: =SUM(IF(YEAR($B$14:$B$23)=$P$33,IF($J$14:$J$23>0,$P$14:$P$23)*1,)) -> 
U34: 2012 | V34: =IF($W$33=0,"-",$X$33/$W$33) ->  | W34: =SUM(IF(YEAR($B$14:$B$23)=$P$33,IF($P$14:$P$23<>2,1,))) -> 6 | X34: =SUM(IF(YEAR($B$14:$B$23)=$P$33,IF($P$14:$P$23=1,$P$14:$P$23)*1,)) -> 2
U35: 2013 | V35: =IF($W$33=0,"-",$X$33/$W$33) ->  | W35: =SUM(IF(YEAR($B$14:$B$23)=$P$33,IF($P$14:$P$23<>2,1,))) -> 6 | X35: =SUM(IF(YEAR($B$14:$B$23)=$P$33,IF($P$14:$P$23=1,$P$14:$P$23)*1,)) -> 2
U36: =YEAR(TODAY())-2 -> 2014 | V36: =IF($W$33=0,"-",$X$33/$W$33) ->  | W36: =SUM(IF(YEAR($B$14:$B$23)=$P$33,IF($P$14:$P$23<>2,1,))) -> 6 | X36: =SUM(IF(YEAR($B$14:$B$23)=$P$33,IF($P$14:$P$23=1,$P$14:$P$23)*1,)) -> 2
U37: =YEAR(TODAY())-1 -> 2015 | V37: =IF($W$33=0,"-",$X$33/$W$33) ->  | W37: =SUM(IF(YEAR($B$14:$B$23)=$P$33,IF($P$14:$P$23<>2,1,))) -> 6 | X37: =SUM(IF(YEAR($B$14:$B$23)=$P$33,IF($P$14:$P$23=1,$P$14:$P$23)*1,)) -> 2
U38: =YEAR(TODAY()) -> 2016 | V38: =IF($W$33=0,"-",$X$33/$W$33) ->  | W38: =SUM(IF(YEAR($B$14:$B$23)=$P$33,IF($P$14:$P$23<>2,1,))) -> 6 | X38: =SUM(IF(YEAR($B$14:$B$23)=$P$33,IF($P$14:$P$23=1,$P$14:$P$23)*1,)) -> 2
U39: =YEAR(TODAY())+1 -> 2017 | W39: =SUM(IF(YEAR($B$14:$B$23)=$P$33,IF($P$14:$P$23<>2,1,))) -> 6 | X39: =SUM(IF(YEAR($B$14:$B$23)=$P$33,IF($P$14:$P$23=1,$P$14:$P$23)*1,)) -> 2
U40: =YEAR(TODAY())+2 -> 2018 | W40: =SUM(IF(YEAR($B$14:$B$23)=$P$33,IF($P$14:$P$23<>2,1,))) -> 6 | X40: =SUM(IF(YEAR($B$14:$B$23)=$P$33,IF($P$14:$P$23=1,$P$14:$P$23)*1,)) -> 2
U42: =SUMPRODUCT(($B$14:$B$24>=DATE($P$33,1,1))*($B$14:$B$24<=DATE($P$33,12,31))*($B$14:$B$24<>"#NV")*($P$14:$P$24=1))+SUMPRODUCT(($B$14:$B$24>=DATE($P$33,1,1))*($B$14:$B$24<=DATE($P$33,12,31))*($B$14:$B$24<>"#NV")*($P$14:$P$24=2)) -> 2 | V42: =SUMPRODUCT(($B$14:$B$24>=DATE($P$33,1,1))*($B$14:$B$24<=DATE($P$33,12,31))*($B$14:$B$24<>"#NV")) -> 6

Sheet Aufträge
A2: Auftragsplanung | Auftragsübersicht
A4: =Start!AA4&" "&"Erfassungsdatum: "&TEXT(Start!E16,"TT.MM.JJJJ")&" "&"für Monat: "&TEXT(Start!AA46,"MM/JJJJ")&" "&"erfasst von: "&TEXT(Start!E17,"") -> Firma: Mustermann GmbH Erfassungsdatum: 10.05.2016 für Monat: 04/2016 erfasst von: Max Muster
T5: ja
AO8: =Start!R28 -> 42461
Q9: Auftragswerte - Produktionsstand
A10: Auftragsübersicht | L10: Abschlussrechnung | R10: Bewertung der Leistung | AL10: Bewertung teilfertige
K11: korr. | AD11: Istwerte | AL11: Arbeiten in T€
I12: Auftrags- | J12: Regie/ | K12: Auftrags- | O12: Aufträge | R12: Materialverbrauch | U12: Lohnkosten | X12: Fertigungsstand | Z12: Fremdleistungen
A13: lfd. | B13: Angebots- | C13: Auftrags- | D13: Auftrag- | E13: Bau- | F13: Produkt- | H13: Fertig- | I13: wert in | J13: Nachträge | K13: wert in | L13: Re. | M13: Betrag | N13: bezahlt | O13: nicht | Q13: Plan | R13: Plan | S13: IST | U13: Plan | V13: Plan | W13: Plan | X13: IST | Y13: IST | Z13: Plan | AA13: IST | AB13: gestellte | AC13: Stand | AD13: Material | AE13: Fertigstellungsstand | AF13: Fremdleist. | AM13: Auftragswert
A14: Nr. | B14: datum | C14: nummer | D14: geber | E14: vorhaben | F14: bereich | G14: Beginn | H14: stellung | I14: T€ | J14: in T€ | K14: T€ | L14: Datum | M14: in T€ | O14: abgr. | Q14: in % | R14: in T€ | S14: in % | T14: In T€ | U14: Std.Satz | V14: in T€ | W14: in std. | X14: in % | Y14: in Std. | Z14: in T€ | AA14: in T€ | AB14: TR in T€ | AC14: Std. | AD14: in T€ | AE14: in T€ | AF14: in T€ | AL14: TF- Arb. | AM14: abrechenbar | AN14: TR | AO14: Differenz
A15: =Angebote!A14 -> 1 | B15: =IF(OR(Angebote!$P14=1,Angebote!$P14=2),Angebote!B14,"") -> 2016-02-01 | C15: =IF(OR(Angebote!$P14=1,Angebote!$P14=2),Angebote!C14,"") -> 15477 | D15: =IF(OR(Angebote!$P14=1,Angebote!$P14=2),Angebote!D14,"") -> Fa. Maier | E15: =IF(OR(Angebote!$P14=1,Angebote!$P14=2),Angebote!F14,"") -> Einkaufsmarkt | F15: =IF(OR(Angebote!$P14=1,Angebote!$P14=2),Angebote!G14,"") -> Gewerbebau | G15: 2016-04-01 | H15: 2016-05-30 | I15: =IF(OR(Angebote!$P14=1,Angebote!$P14=2),Angebote!Q14,"") -> 300 | J15: 5 | K15: =IF(J15<>0,I15+J15,I15) -> 305 | O15: =IF(M15="",K15,"") -> 305 | Q15: =IF(F15="","",VLOOKUP(F15,Einrichtung!$B$13:$E$17,2,0)) -> 0.35 | R15: =IF(K15="","",Q15*K15) -> 106.75 | S15: 1 | U15: =IF(F15="","",VLOOKUP(F15,Einrichtung!$B$13:$E$17,4,0)) -> 39 | V15: =IF(W15="","",(U15*W15)/1000) -> 167.75 | W15: =IF(K15="","",(K15-R15-Z15)/(U15/1000)) -> 4301.282051 | Y15: 1000 | Z15: =IF(F15="","",VLOOKUP(F15,Einrichtung!$B$13:$E$17,3,0)*K15) -> 30.5 | AA15: 30.5 | AB15: 100 | AC15: =IF(AND(U15="",Y15=""),"",IF(Y15>W15,U15*W15/1000,Y15*U15/1000)) -> 39 | AD15: =IF(R15="","",IF(S15>0,R15*S15,T15)) -> 106.75 | AE15: =IF(AND(X15="",Y15="",),"",IF(Y15>0,U15*Y15/1000,(U15*W15)/1000*X15)) -> 39 | AF15: =IF(Z15=0,"0",AA15) -> 30.5 | AG15: =AB15/O15 -> 0.3278688525 | AI15: =IF(M15>0,1,AJ15) -> 0.5778688525 | AJ15: =IFERROR(AL15/K15,0) -> 0.5778688525 | AL15: =IF(AND(L15="",AD15<>""),AD15+AE15+AF15,"") -> 176.25 | AM15: =IF(OR(AL15<=K15,AL15=""),AL15,K15) -> 176.25 | AN15: =IF(L15<>0,0,AB15) -> 100 | AO15: =IF(AM15="","",AM15-AN15) -> 76.25 | AP15: =Y15*100/W15 -> 23.24888227 | AQ15: =AB15/AL15 -> 0.5673758865 | AR15: =IFERROR(IF(AND(W15>0,X15="",Y15=""),W15,IF(X15>0,W15*(100%-X15),IF(Y15>0,W15-Y15,0))),0) -> 3301.282051
A16: =Angebote!A15 -> 2 | B16: =IF(OR(Angebote!$P15=1,Angebote!$P15=2),Angebote!B15,"") ->  | C16: =IF(OR(Angebote!$P15=1,Angebote!$P15=2),Angebote!C15,"") ->  | D16: =IF(OR(Angebote!$P15=1,Angebote!$P15=2),Angebote!D15,"") ->  | E16: =IF(OR(Angebote!$P15=1,Angebote!$P15=2),Angebote!F15,"") ->  | F16: =IF(OR(Angebote!$P15=1,Angebote!$P15=2),Angebote!G15,"") ->  | I16: =IF(OR(Angebote!$P15=1,Angebote!$P15=2),Angebote!Q15,"") ->  | K16: =IF(J16<>0,I16+J16,I16) ->  | O16: =IF(M16="",K16,"") ->  | Q16: =IF(F16="","",VLOOKUP(F16,Einrichtung!$B$13:$E$17,2,0)) ->  | R16: =IF(K16="","",Q16*K16) ->  | U16: =IF(F16="","",VLOOKUP(F16,Einrichtung!$B$13:$E$17,4,0)) ->  | V16: =IF(W16="","",(U16*W16)/1000) ->  | W16: =IF(K16="","",(K16-R16-Z16)/(U16/1000)) ->  | Z16: =IF(F16="","",VLOOKUP(F16,Einrichtung!$B$13:$E$17,3,0)*K16) ->  | AC16: =IF(AND(U16="",Y16=""),"",IF(Y16>W16,U16*W16/1000,Y16*U16/1000)) ->  | AD16: =IF(R16="","",IF(S16>0,R16*S16,T16)) ->  | AE16: =IF(AND(X16="",Y16="",),"",IF(Y16>0,U16*Y16/1000,(U16*W16)/1000*X16)) ->  | AF16: =IF(Z16=0,"0",AA16) -> 0 | AG16: =AB16/O16 ->  | AI16: =IF(M16>0,1,AJ16) -> 0 | AJ16: 0 | AL16: =IF(AND(L16="",AD16<>""),AD16+AE16+AF16,"") ->  | AM16: =IF(OR(AL16<=K16,AL16=""),AL16,K16) ->  | AN16: =IF(L16<>0,0,AB16) -> 0 | AO16: =IF(AM16="","",AM16-AN16) ->  | AP16: =Y16*100/W16 ->  | AQ16: =AB16/AL16 ->  | AR16: =IFERROR(IF(AND(W16>0,X16="",Y16=""),W16,IF(X16>0,W16*(100%-X16),IF(Y16>0,W16-Y16,0))),0) -> 
A17: =Angebote!A16 -> 3 | B17: =IF(OR(Angebote!$P16=1,Angebote!$P16=2),Angebote!B16,"") -> 2016-02-20 | C17: =IF(OR(Angebote!$P16=1,Angebote!$P16=2),Angebote!C16,"") -> 15479 | D17: =IF(OR(Angebote!$P16=1,Angebote!$P16=2),Angebote!D16,"") -> Herr Staber | E17: =IF(OR(Angebote!$P16=1,Angebote!$P16=2),Angebote!F16,"") -> EFH | F17: =IF(OR(Angebote!$P16=1,Angebote!$P16=2),Angebote!G16,"") -> Neubau-Privatkd. | G17: 2016-04-10 | H17: 2016-05-30 | I17: =IF(OR(Angebote!$P16=1,Angebote!$P16=2),Angebote!Q16,"") -> 180 | K17: 180 | O17: 180 | Q17: =IF(F17="","",VLOOKUP(F17,Einrichtung!$B$13:$E$17,2,0)) -> 0.38 | R17: 68.4 | S17: 0.5 | U17: =IF(F17="","",VLOOKUP(F17,Einrichtung!$B$13:$E$17,4,0)) -> 42.5 | V17: 57.6 | W17: 1355.294118 | Y17: 700 | Z17: =IF(F17="","",VLOOKUP(F17,Einrichtung!$B$13:$E$17,3,0)*K17) -> 54 | AB17: 50 | AC17: 29.75 | AD17: 34.2 | AE17: 29.75 | AF17: 0 | AG17: 0.2777777778 | AI17: 0.3552777778 | AJ17: 0.3552777778 | AL17: 63.95 | AM17: 63.95 | AN17: 50 | AO17: 13.95 | AP17: 51.64930556 | AQ17: 0.7818608288 | AR17: 655.2941176
A18: =Angebote!A17 -> 4 | B18: =IF(OR(Angebote!$P17=1,Angebote!$P17=2),Angebote!B17,"") ->  | C18: =IF(OR(Angebote!$P17=1,Angebote!$P17=2),Angebote!C17,"") ->  | D18: =IF(OR(Angebote!$P17=1,Angebote!$P17=2),Angebote!D17,"") ->  | E18: =IF(OR(Angebote!$P17=1,Angebote!$P17=2),Angebote!F17,"") ->  | F18: =IF(OR(Angebote!$P17=1,Angebote!$P17=2),Angebote!G17,"") ->  | I18: =IF(OR(Angebote!$P17=1,Angebote!$P17=2),Angebote!Q17,"") ->  | Q18: =IF(F18="","",VLOOKUP(F18,Einrichtung!$B$13:$E$17,2,0)) ->  | U18: =IF(F18="","",VLOOKUP(F18,Einrichtung!$B$13:$E$17,4,0)) ->  | Z18: =IF(F18="","",VLOOKUP(F18,Einrichtung!$B$13:$E$17,3,0)*K18) ->  | AF18: 0 | AJ18: 0 | AN18: 0
A19: =Angebote!A18 -> 5 | B19: =IF(OR(Angebote!$P18=1,Angebote!$P18=2),Angebote!B18,"") ->  | C19: =IF(OR(Angebote!$P18=1,Angebote!$P18=2),Angebote!C18,"") ->  | D19: =IF(OR(Angebote!$P18=1,Angebote!$P18=2),Angebote!D18,"") ->  | E19: =IF(OR(Angebote!$P18=1,Angebote!$P18=2),Angebote!F18,"") ->  | F19: =IF(OR(Angebote!$P18=1,Angebote!$P18=2),Angebote!G18,"") ->  | I19: =IF(OR(Angebote!$P18=1,Angebote!$P18=2),Angebote!Q18,"") ->  | K19: =IF(J19<>0,I19+J19,I19) ->  | O19: =IF(M19="",K19,"") ->  | Q19: =IF(F19="","",VLOOKUP(F19,Einrichtung!$B$13:$E$17,2,0)) ->  | U19: =IF(F19="","",VLOOKUP(F19,Einrichtung!$B$13:$E$17,4,0)) ->  | Z19: =IF(F19="","",VLOOKUP(F19,Einrichtung!$B$13:$E$17,3,0)*K19) ->  | AC19: =IF(AND(U19="",Y19=""),"",IF(Y19>W19,U19*W19/1000,Y19*U19/1000)) ->  | AD19: =IF(R19="","",IF(S19>0,R19*S19,T19)) ->  | AE19: =IF(AND(X19="",Y19="",),"",IF(Y19>0,U19*Y19/1000,(U19*W19)/1000*X19)) ->  | AF19: =IF(Z19=0,"0",AA19) -> 0 | AJ19: 0 | AL19: =IF(AND(L19="",AD19<>""),AD19+AE19+AF19,"") ->  | AN19: =IF(L19<>0,0,AB19) -> 0 | AO19: =IF(AM19="","",AM19-AN19) ->  | AP19: =Y19*100/W19 -> 
A20: =Angebote!A19 -> 6 | B20: =IF(OR(Angebote!$P19=1,Angebote!$P19=2),Angebote!B19,"") ->  | C20: =IF(OR(Angebote!$P19=1,Angebote!$P19=2),Angebote!C19,"") ->  | D20: =IF(OR(Angebote!$P19=1,Angebote!$P19=2),Angebote!D19,"") ->  | E20: =IF(OR(Angebote!$P19=1,Angebote!$P19=2),Angebote!F19,"") ->  | F20: =IF(OR(Angebote!$P19=1,Angebote!$P19=2),Angebote!G19,"") ->  | I20: =IF(OR(Angebote!$P19=1,Angebote!$P19=2),Angebote!Q19,"") ->  | Q20: =IF(F20="","",VLOOKUP(F20,Einrichtung!$B$13:$E$17,2,0)) ->  | U20: =IF(F20="","",VLOOKUP(F20,Einrichtung!$B$13:$E$17,4,0)) ->  | Z20: =IF(F20="","",VLOOKUP(F20,Einrichtung!$B$13:$E$17,3,0)*K20) ->  | AF20: 0 | AI20: =IF(M20>0,1,AJ20) -> 0 | AJ20: =IFERROR(AL20/K20,0) -> 0 | AN20: 0
A21: =Angebote!A20 -> 7 | B21: =IF(OR(Angebote!$P20=1,Angebote!$P20=2),Angebote!B20,"") ->  | C21: =IF(OR(Angebote!$P20=1,Angebote!$P20=2),Angebote!C20,"") ->  | D21: =IF(OR(Angebote!$P20=1,Angebote!$P20=2),Angebote!D20,"") ->  | E21: =IF(OR(Angebote!$P20=1,Angebote!$P20=2),Angebote!F20,"") ->  | F21: =IF(OR(Angebote!$P20=1,Angebote!$P20=2),Angebote!G20,"") ->  | I21: =IF(OR(Angebote!$P20=1,Angebote!$P20=2),Angebote!Q20,"") ->  | Q21: =IF(F21="","",VLOOKUP(F21,Einrichtung!$B$13:$E$17,2,0)) ->  | U21: =IF(F21="","",VLOOKUP(F21,Einrichtung!$B$13:$E$17,4,0)) ->  | Z21: =IF(F21="","",VLOOKUP(F21,Einrichtung!$B$13:$E$17,3,0)*K21) ->  | AF21: 0 | AJ21: 0 | AN21: 0
A22: =Angebote!A21 -> 8 | B22: =IF(OR(Angebote!$P21=1,Angebote!$P21=2),Angebote!B21,"") ->  | C22: =IF(OR(Angebote!$P21=1,Angebote!$P21=2),Angebote!C21,"") ->  | D22: =IF(OR(Angebote!$P21=1,Angebote!$P21=2),Angebote!D21,"") ->  | E22: =IF(OR(Angebote!$P21=1,Angebote!$P21=2),Angebote!F21,"") ->  | F22: =IF(OR(Angebote!$P21=1,Angebote!$P21=2),Angebote!G21,"") ->  | I22: =IF(OR(Angebote!$P21=1,Angebote!$P21=2),Angebote!Q21,"") ->  | Q22: =IF(F22="","",VLOOKUP(F22,Einrichtung!$B$13:$E$17,2,0)) ->  | U22: =IF(F22="","",VLOOKUP(F22,Einrichtung!$B$13:$E$17,4,0)) ->  | Z22: =IF(F22="","",VLOOKUP(F22,Einrichtung!$B$13:$E$17,3,0)*K22) ->  | AF22: 0 | AI22: =IF(M22>0,1,AJ22) -> 0 | AJ22: 0 | AN22: 0
A23: =Angebote!A22 -> 9 | B23: =IF(OR(Angebote!$P22=1,Angebote!$P22=2),Angebote!B22,"") ->  | C23: =IF(OR(Angebote!$P22=1,Angebote!$P22=2),Angebote!C22,"") ->  | D23: =IF(OR(Angebote!$P22=1,Angebote!$P22=2),Angebote!D22,"") ->  | E23: =IF(OR(Angebote!$P22=1,Angebote!$P22=2),Angebote!F22,"") ->  | F23: =IF(OR(Angebote!$P22=1,Angebote!$P22=2),Angebote!G22,"") ->  | I23: =IF(OR(Angebote!$P22=1,Angebote!$P22=2),Angebote!Q22,"") ->  | Q23: =IF(F23="","",VLOOKUP(F23,Einrichtung!$B$13:$E$17,2,0)) ->  | U23: =IF(F23="","",VLOOKUP(F23,Einrichtung!$B$13:$E$17,4,0)) ->  | Z23: =IF(F23="","",VLOOKUP(F23,Einrichtung!$B$13:$E$17,3,0)*K23) ->  | AF23: 0 | AJ23: 0 | AN23: 0
A24: =Angebote!A23 -> 10 | B24: =IF(OR(Angebote!$P23=1,Angebote!$P23=2),Angebote!B23,"") ->  | C24: =IF(OR(Angebote!$P23=1,Angebote!$P23=2),Angebote!C23,"") ->  | D24: =IF(OR(Angebote!$P23=1,Angebote!$P23=2),Angebote!D23,"") ->  | E24: =IF(OR(Angebote!$P23=1,Angebote!$P23=2),Angebote!F23,"") ->  | F24: =IF(OR(Angebote!$P23=1,Angebote!$P23=2),Angebote!G23,"") ->  | I24: =IF(OR(Angebote!$P23=1,Angebote!$P23=2),Angebote!Q23,"") ->  | Q24: =IF(F24="","",VLOOKUP(F24,Einrichtung!$B$13:$E$17,2,0)) ->  | U24: =IF(F24="","",VLOOKUP(F24,Einrichtung!$B$13:$E$17,4,0)) ->  | Z24: =IF(F24="","",VLOOKUP(F24,Einrichtung!$B$13:$E$17,3,0)*K24) ->  | AF24: 0 | AI24: =IF(M24>0,1,AJ24) -> 0 | AJ24: 0 | AN24: 0
AL26: =SUBTOTAL(9,AL15:AL24) -> 240.2 | AM26: =SUBTOTAL(9,AM15:AM24) -> 240.2 | AN26: =SUBTOTAL(9,AN15:AN24) -> 150 | AO26: =((AN26/AM26)) -> 0.6244796003 | AP26: =Einrichtung!C33 -> 0.7
V28: Stand der teilfertigen Arbeiten zum | AA28: =Einrichtung!C20 -> 2015-12-31 | AM28: =Einrichtung!D20 -> 100
V30: Stand der teilfertigen Arbeiten zum | AA30: =IF(AO8="","",AO8) -> 2016-04-01 | AM30: =IF(Einrichtung!W2=2,AM26,AM26-AN26) -> 240.2
V32: Bewertung für die Buchhaltung | AA32: =Einrichtung!C25 -> 0.95 | AI32: 0 | AM32: =AA32*AM30 -> 228.19
V34: Bestandsveränderungen zum | AA34: =AA30 -> 2016-04-01 | AM34: =IF(AM28="","",AM32-AM28) -> 128.19
V36: Summe Aufträge nicht abgerechnet in T€ | AM36: =SUBTOTAL(9,O15:O24) -> 485
V38: Summe offene Aufträge in T€ | AM38: =SUBTOTAL(9,O15:O24)-AL26 -> 244.8
V40: Fertigungsstand | AM40: =AL26/AM36 -> 0.495257732
V42: Summe Auslastung in Stunden | AM42: =IF(Einrichtung!C29="","-",AM38*Einrichtung!G27*1000/Einrichtung!C29) -> 3700.465116

Sheet Einrichtung
B2: Auftragsplanung | Einrichtung | V2: 2 | W2: 2
B4: =Start!AA4&" "&" "&Intern!A4 -> Firma: Mustermann GmbH Version 1.20
B11: Eingabe der Planvorgaben
B12: Produktbereich | C12: Materialeinsatz in % | D12: Fremdleistung in % | E12: Stundensatz Vorgabezeit
B13: Neubau-Privatkd. | C13: 0.38 | D13: 0.3 | E13: 42.5
B14: Gewerbebau | C14: 0.35 | D14: 0.1 | E14: 39
B15: Renovierung | C15: 0.3 | D15: 0.1 | E15: 45
B16: Umbau | C16: 0.3 | D16: 0 | E16: 45
B17: Bauträger | C17: 0.35 | D17: 0.15 | E17: 39
M18: Ja / umsatzwirksam
C19: Vorjahr | D19: Wert in T€ | M19: Ja / nicht umsatzwirksam
B20: Stand der teilfertigen Arbeiten zum | C20: 2015-12-31 | D20: 100 | M20: Ja / nicht umsatzwirksam
B22: Teilzahlung berücksichtigen
B25: Bewertung für die Buchaltung / BWA | C25: 0.95
B27: Basismaterialeinsatz für Auslastung | C27: 0.35 | G27: =100%-C27 -> 0.65
B29: Basisstundensatz für Auslastung | C29: 43
B31: Mindestauslastung in Stunden | C31: 1500
B33: Anteil Teilrechnung zu HF- Arbeiten | C33: 0.7
B35: Mindestbestand Angebote in T€ | C35: 300

Sheet Anleitung
B2: Auftragsplanung | Anleitung | V2: 1
B4: =" "&Start!AA4&" "&" "&Intern!A4 -> Firma: Mustermann GmbH Version 1.20

Sheet Intern (hidden)
A2: UnternehmerKompass© 2012 Auftragsplanung - Intern
A4: Version 1.20 | B4: © bauerundpartner
A12: Changelog:
A14: 16.09.2010: - Veränderung der Formel im Auftragsblatt (Berechnung der gel. IST Arbeitszeit korrigiert. Nicht über 100%)
A15: 15.10.2010: - Veränderung / Hinzufügen des Indexeintrags "Erfasst durch" & Verlinkung
A16: 14.01.2011: Umstrukturierung Auftragsübersicht IST PLAN, Auftragsquote JAHR, Kopfzeilenveränderung Monat, Erfassungsdatum, Zellensperrung bei Fehleingaben sowie Fehlermeldungen
A17: 09.02.2011: Version 1.04 / 500 Zeilen, Zellensperrungen, "erhaltene AZ" -> "verbuchte Teilrechnung"
A18: 30.05.2012: Version 1.05 / erhaltene Teilzahlung als Umsatz gebucht (Switch) hinzugefügt
A19: 03.07.2012: Version 1.06 / Einblendung Blattregister, Einrichtung kompett gesperrt, Rechnungsdatum rot bei Fertigstellung 100%, Bewertung Teilf. rot bei Differenz zu Auftragswert
A21: 10.07.2012: - separate Zeile um T€ sichtbar zu machen (Filter), Auftragswert rot & Kommentar, doppelstriche Abschlussrechnung, seit 30 Tagen… rot, Dropdown Angebote
A22: 13.07.2012: Version 1.07 / offen rot, Sortierfunktion Angebote
A24: 30.07.2012: Version 1.08 / Anleitung "Auslastung" ergänzt, Formel "Summe Auslastung in Std." korrigiert, Einrichtung ergänzt
A25: 02.10.2012: Version 1.09 Switch Aufträge Abschlussrechnung "ja" = schwarz
A29: 21.02.2012: Versionsaktualisierung neues CI - switch bei kapazität > 100% -> rot
A32: 28.03.2013: Version: 1.140328 Versionsanzeige im Hauptmenü, neues CI + Spaltenvergrößerungen, Eingabebutton & Auswertungsbutton in Sheet Angebote, Rechnungsdatum wird rot bei >95% Fertigstellung, Beginn & Fertigstellung rot
A34: 07.04.2013: Version: 1.1404 Veränderung bzgl. Sortierungsfunktion Aufträge Datumsspalte
A37: 11.04.2016: Version: 1.20: - Viele Verbesserungen & Bugfixes, darunter Programmierung neuer Funktionen wie z.B. Chefinfoübersicht. Diese ist noch nicht einglendet, da die Handlungsanweisungen fehlen
